Workbook

Sheet Non-Lighting Rebate Estimator
Z1: Business Name
Z3: Address (Street / City / State / Zip Code)
E4: HVAC Rebate Estimator Last Revised 1/1/2018 | O4: Enter Total Project Costs (for items receiving rebates - including tax)
Z5: Contact Name
O6: Enter Expected Utility Rebates
Z7: Phone
O8: PACE Rebate Limit (50% of Project Costs minus Utility Rebates) | T8: =IF(IF((0.5*T4-T6)<5000,(0.5*T4-T6),5000)<0,0.000001,(IF((0.5*T4-T6)<5000,(0.5*T4-T6),5000))) -> 0
Z9: Email
O10: Estimated PACE Rebate Amount | T10: =IFERROR(IF(V65>T8,T8,V65),"") -> 0
A12: Measures | B12: # of Units Being Rebated | C12: Building Type | D12: Equipment Capacity | E12: Equipment Capacity Unit | F12: Efficient Equipment Efficiency | G12: Efficient RTU with Economizer? | H12: Is the Existing Unit Operable? | I12: Existing Equipment Efficiency | J12: Existing Equipment Efficiency - Final | K12: Equipment Efficiency Unit | L12: Existing Equipment Installed Date | M12: Existing Equipment Install Date Range | N12: EFLH | O12: Calculated Savings | P12: Calculated Savings Unit | Q12: Deemed Savings | R12: Deemed Savings Units | S12: PACE Rebate | T12: Rebate Units | U12: Capacity Units | V12: PACE Reward | W12: $/ ton GHG-saved (PACE Rebate) | X12: Xcel Rebate | Y12: $/ ton GHG-saved (ES+Xcel Rebate) | Z12: Specifications
A13: Heating
U14: kBTU | W14: $/metric ton | Y14: $/metric ton
A15: Boiler, minimum 92% AFUE | E15: kBTU | G15: n/a | J15: =IFERROR(IF(I15="",VLOOKUP(M15,Baseline_Eff_lookup,2,FALSE),I15),"") ->  | K15: EFF % | M15: =IFERROR(VLOOKUP(L15,DateRange_lookup,2,FALSE),"") ->  | N15: =IFERROR(VLOOKUP(C15,EFLH_lookup,3,FALSE),"") ->  | O15: =IFERROR(((((D15*1000)*F15/(IF(H15="yes",J15*(1-Lookups!$I$10)^(2016-'Non-Lighting Rebate Estimator'!L15),Lookups!$B$30)))-(D15*1000))*N15/1000000)*B15,"") ->  | P15: dekatherms/ unit | Q15: 510.3 | R15: kWh/million btu | S15: =IF(H15="yes",IF(F15="",'Incremental Cost'!$M$11,IF(F15=92%,'Incremental Cost'!$M$11,('Incremental Cost'!$M$11+('Incremental Cost'!$Q4*((F15-92%)*100))))),IF(F15="",'Incremental Cost'!$L$11,IF(F15=92%,'Incremental Cost'!$L$11,('Incremental Cost'!$L$11+('Incremental Cost'!$Q4*((F15-92%)*100)))))) -> 2.5 | T15: $/kBTU | U15: =D15 -> 0 | V15: =IF((U15*S15)*B15>5000,5000,(U15*S15)*B15) -> 0 | W15: =IFERROR(V15/((O15*10)*Lookups!$M$4),"") ->  | X15: =IFERROR(U15*'Incremental Cost'!$K$11,"") -> 0 | Y15: =IFERROR((V15+X15)/(O15*10*Lookups!$M$4),"") ->  | Z15: • Condensing hot water boilers for space heating and domestic water only • Rebates for new equipment replacing currently operating & inoperable equipment • Equipment must use natural-gas fuel • Boilers must meet minimum efficiency of 92% AFUE • Back-up equipment not eligible for rebates • Customer must provide CO State inspection report with application
A16: Boiler, minimum 92% AFUE | E16: kBTU | G16: n/a | J16: =IFERROR(IF(I16="",VLOOKUP(M16,Baseline_Eff_lookup,2,FALSE),I16),"") ->  | K16: EFF % | M16: =IFERROR(VLOOKUP(L16,DateRange_lookup,2,FALSE),"") ->  | N16: =IFERROR(VLOOKUP(C16,EFLH_lookup,3,FALSE),"") ->  | O16: =IFERROR(((((D16*1000)*F16/(IF(H16="yes",J16*(1-Lookups!$I$10)^(2016-'Non-Lighting Rebate Estimator'!L16),Lookups!$B$30)))-(D16*1000))*N16/1000000)*B16,"") ->  | P16: dekatherms/ unit | Q16: 510.3 | R16: kWh/million btu | S16: =IF(H16="yes",IF(F16="",'Incremental Cost'!$M$11,IF(F16=92%,'Incremental Cost'!$M$11,('Incremental Cost'!$M$11+('Incremental Cost'!$Q5*((F16-92%)*100))))),IF(F16="",'Incremental Cost'!$L$11,IF(F16=92%,'Incremental Cost'!$L$11,('Incremental Cost'!$L$11+('Incremental Cost'!$Q5*((F16-92%)*100)))))) -> 2.5 | T16: $/kBTU | U16: =D16 -> 0 | V16: =IF((U16*S16)*B16>5000,5000,(U16*S16)*B16) -> 0 | W16: =IFERROR(V16/((O16*10)*Lookups!$M$4),"") ->  | X16: =IFERROR(U16*'Incremental Cost'!$K$11,"") -> 0 | Y16: =IFERROR((V16+X16)/(O16*10*Lookups!$M$4),"") ->  | Z16: • Condensing hot water boilers for space heating and domestic water only • Rebates for new equipment replacing currently operating & inoperable equipment • Equipment must use natural-gas fuel • Boilers must meet minimum efficiency of 92% AFUE • Back-up equipment not eligible for rebates • Customer must provide CO State inspection report with application
A17: Boiler, minimum 92% AFUE | E17: kBTU | G17: n/a | J17: =IFERROR(IF(I17="",VLOOKUP(M17,Baseline_Eff_lookup,2,FALSE),I17),"") ->  | K17: EFF % | M17: =IFERROR(VLOOKUP(L17,DateRange_lookup,2,FALSE),"") ->  | N17: =IFERROR(VLOOKUP(C17,EFLH_lookup,3,FALSE),"") ->  | O17: =IFERROR(((((D17*1000)*F17/(IF(H17="yes",J17*(1-Lookups!$I$10)^(2016-'Non-Lighting Rebate Estimator'!L17),Lookups!$B$30)))-(D17*1000))*N17/1000000)*B17,"") ->  | P17: dekatherms/ unit | Q17: 510.3 | R17: kWh/million btu | S17: =IF(H17="yes",IF(F17="",'Incremental Cost'!$M$11,IF(F17=92%,'Incremental Cost'!$M$11,('Incremental Cost'!$M$11+('Incremental Cost'!$Q6*((F17-92%)*100))))),IF(F17="",'Incremental Cost'!$L$11,IF(F17=92%,'Incremental Cost'!$L$11,('Incremental Cost'!$L$11+('Incremental Cost'!$Q6*((F17-92%)*100)))))) -> 2.5 | T17: $/kBTU | U17: =D17 -> 0 | V17: =IF((U17*S17)*B17>5000,5000,(U17*S17)*B17) -> 0 | W17: =IFERROR(V17/((O17*10)*Lookups!$M$4),"") ->  | X17: =IFERROR(U17*'Incremental Cost'!$K$11,"") -> 0 | Y17: =IFERROR((V17+X17)/(O17*10*Lookups!$M$4),"") ->  | Z17: • Condensing hot water boilers for space heating and domestic water only • Rebates for new equipment replacing currently operating & inoperable equipment • Equipment must use natural-gas fuel • Boilers must meet minimum efficiency of 92% AFUE • Back-up equipment not eligible for rebates • Customer must provide CO State inspection report with application
A18: Boiler, minimum 92% AFUE | E18: kBTU | G18: n/a | J18: =IFERROR(IF(I18="",VLOOKUP(M18,Baseline_Eff_lookup,2,FALSE),I18),"") ->  | K18: EFF % | M18: =IFERROR(VLOOKUP(L18,DateRange_lookup,2,FALSE),"") ->  | N18: =IFERROR(VLOOKUP(C18,EFLH_lookup,3,FALSE),"") ->  | O18: =IFERROR(((((D18*1000)*F18/(IF(H18="yes",J18*(1-Lookups!$I$10)^(2016-'Non-Lighting Rebate Estimator'!L18),Lookups!$B$30)))-(D18*1000))*N18/1000000)*B18,"") ->  | P18: dekatherms/ unit | Q18: 510.3 | R18: kWh/million btu | S18: =IF(H18="yes",IF(F18="",'Incremental Cost'!$M$11,IF(F18=92%,'Incremental Cost'!$M$11,('Incremental Cost'!$M$11+('Incremental Cost'!$Q7*((F18-92%)*100))))),IF(F18="",'Incremental Cost'!$L$11,IF(F18=92%,'Incremental Cost'!$L$11,('Incremental Cost'!$L$11+('Incremental Cost'!$Q7*((F18-92%)*100)))))) -> 2.5 | T18: $/kBTU | U18: =D18 -> 0 | V18: =IF((U18*S18)*B18>5000,5000,(U18*S18)*B18) -> 0 | W18: =IFERROR(V18/((O18*10)*Lookups!$M$4),"") ->  | X18: =IFERROR(U18*'Incremental Cost'!$K$11,"") -> 0 | Y18: =IFERROR((V18+X18)/(O18*10*Lookups!$M$4),"") ->  | Z18: • Condensing hot water boilers for space heating and domestic water only • Rebates for new equipment replacing currently operating & inoperable equipment • Equipment must use natural-gas fuel • Boilers must meet minimum efficiency of 92% AFUE • Back-up equipment not eligible for rebates • Customer must provide CO State inspection report with application
A19: Boiler, minimum 92% AFUE | E19: kBTU | G19: n/a | J19: =IFERROR(IF(I19="",VLOOKUP(M19,Baseline_Eff_lookup,2,FALSE),I19),"") ->  | K19: EFF % | M19: =IFERROR(VLOOKUP(L19,DateRange_lookup,2,FALSE),"") ->  | N19: =IFERROR(VLOOKUP(C19,EFLH_lookup,3,FALSE),"") ->  | O19: =IFERROR(((((D19*1000)*F19/(IF(H19="yes",J19*(1-Lookups!$I$10)^(2016-'Non-Lighting Rebate Estimator'!L19),Lookups!$B$30)))-(D19*1000))*N19/1000000)*B19,"") ->  | P19: dekatherms/ unit | Q19: 510.3 | R19: kWh/million btu | S19: =IF(H19="yes",IF(F19="",'Incremental Cost'!$M$11,IF(F19=92%,'Incremental Cost'!$M$11,('Incremental Cost'!$M$11+('Incremental Cost'!$Q8*((F19-92%)*100))))),IF(F19="",'Incremental Cost'!$L$11,IF(F19=92%,'Incremental Cost'!$L$11,('Incremental Cost'!$L$11+('Incremental Cost'!$Q8*((F19-92%)*100)))))) -> 2.5 | T19: $/kBTU | U19: =D19 -> 0 | V19: =IF((U19*S19)*B19>5000,5000,(U19*S19)*B19) -> 0 | W19: =IFERROR(V19/((O19*10)*Lookups!$M$4),"") ->  | X19: =IFERROR(U19*'Incremental Cost'!$K$11,"") -> 0 | Y19: =IFERROR((V19+X19)/(O19*10*Lookups!$M$4),"") ->  | Z19: • Condensing hot water boilers for space heating and domestic water only • Rebates for new equipment replacing currently operating & inoperable equipment • Equipment must use natural-gas fuel • Boilers must meet minimum efficiency of 92% AFUE • Back-up equipment not eligible for rebates • Customer must provide CO State inspection report with application
U20: Unit
A21: Natural Gas Furnace <=225 kBTU, minimum 92% AFUE | E21: kBTU | J21: =IFERROR(IF(I21="",VLOOKUP(M21,Baseline_Eff_lookup,4,FALSE),I21),"") ->  | K21: EFF % | M21: =IFERROR(VLOOKUP(L21,DateRange_lookup,2,FALSE),"") ->  | N21: =IFERROR(VLOOKUP(C21,EFLH_lookup,3,FALSE),"") ->  | O21: =IFERROR(((((D21*1000)*F21/(IF(H21="yes",J21*(1-Lookups!$I$10)^(2016-'Non-Lighting Rebate Estimator'!L21),Lookups!$D$30)))-(D21*1000))*N21/1000000)*B21,"") ->  | P21: dekatherms/ unit | Q21: 4071 | R21: kWh/Unit | S21: =ROUND(IF(H21="yes",IF(F21="",'Incremental Cost'!$I$25,IF(F21=92%,'Incremental Cost'!$I$25,('Incremental Cost'!$I$25+'Incremental Cost'!$M16))),IF(F21="",'Incremental Cost'!$H$25,IF(F21=92%,'Incremental Cost'!$H$25,('Incremental Cost'!$H$25+'Incremental Cost'!$M16)))),0) -> 100 | T21: $/unit | U21: =B21 -> 0 | V21: =IF((U21*S21)>5000,5000,(U21*S21)) -> 0 | W21: =IFERROR(V21/((O21*10)*Lookups!$M$4),"") ->  | X21: ='Incremental Cost'!$G$25 -> 80 | Y21: =IFERROR((V21+X21)/(O21*10*Lookups!$M$4),"") ->  | Z21: • Rebates for new equipment replacing currently operating & inoperable equipment • Furnace must be less than 225 kBtuh • Furnaces must meet minimum efficiency of 92% AFUE • Equipment must use natural-gas fuel
A22: Natural Gas Furnace <=225 kBTU, minimum 92% AFUE | E22: kBTU | J22: =IFERROR(IF(I22="",VLOOKUP(M22,Baseline_Eff_lookup,4,FALSE),I22),"") ->  | K22: EFF % | M22: =IFERROR(VLOOKUP(L22,DateRange_lookup,2,FALSE),"") ->  | N22: =IFERROR(VLOOKUP(C22,EFLH_lookup,3,FALSE),"") ->  | O22: =IFERROR(((((D22*1000)*F22/(IF(H22="yes",J22*(1-Lookups!$I$10)^(2016-'Non-Lighting Rebate Estimator'!L22),Lookups!$D$30)))-(D22*1000))*N22/1000000)*B22,"") ->  | P22: dekatherms/ unit | Q22: 4071 | R22: kWh/Unit | S22: =ROUND(IF(H22="yes",IF(F22="",'Incremental Cost'!$I$25,IF(F22=92%,'Incremental Cost'!$I$25,('Incremental Cost'!$I$25+'Incremental Cost'!$M17))),IF(F22="",'Incremental Cost'!$H$25,IF(F22=92%,'Incremental Cost'!$H$25,('Incremental Cost'!$H$25+'Incremental Cost'!$M17)))),0) -> 100 | T22: $/unit | U22: =B22 -> 0 | V22: =IF((U22*S22)>5000,5000,(U22*S22)) -> 0 | W22: =IFERROR(V22/((O22*10)*Lookups!$M$4),"") ->  | X22: ='Incremental Cost'!$G$25 -> 80 | Y22: =IFERROR((V22+X22)/(O22*10*Lookups!$M$4),"") ->  | Z22: • Rebates for new equipment replacing currently operating & inoperable equipment • Furnace must be less than 225 million Btuh • Furnaces must meet minimum efficiency of 92% AFUE • Equipment must use natural-gas fuel
A23: Natural Gas Furnace <=225 kBTU, minimum 92% AFUE | E23: kBTU | J23: =IFERROR(IF(I23="",VLOOKUP(M23,Baseline_Eff_lookup,4,FALSE),I23),"") ->  | K23: EFF % | M23: =IFERROR(VLOOKUP(L23,DateRange_lookup,2,FALSE),"") ->  | N23: =IFERROR(VLOOKUP(C23,EFLH_lookup,3,FALSE),"") ->  | O23: =IFERROR(((((D23*1000)*F23/(IF(H23="yes",J23*(1-Lookups!$I$10)^(2016-'Non-Lighting Rebate Estimator'!L23),Lookups!$D$30)))-(D23*1000))*N23/1000000)*B23,"") ->  | P23: dekatherms/ unit | Q23: 4071 | R23: kWh/Unit | S23: =ROUND(IF(H23="yes",IF(F23="",'Incremental Cost'!$I$25,IF(F23=92%,'Incremental Cost'!$I$25,('Incremental Cost'!$I$25+'Incremental Cost'!$M18))),IF(F23="",'Incremental Cost'!$H$25,IF(F23=92%,'Incremental Cost'!$H$25,('Incremental Cost'!$H$25+'Incremental Cost'!$M18)))),0) -> 100 | T23: $/unit | U23: =B23 -> 0 | V23: =IF((U23*S23)>5000,5000,(U23*S23)) -> 0 | W23: =IFERROR(V23/((O23*10)*Lookups!$M$4),"") ->  | X23: ='Incremental Cost'!$G$25 -> 80 | Y23: =IFERROR((V23+X23)/(O23*10*Lookups!$M$4),"") ->  | Z23: • Rebates for new equipment replacing currently operating & inoperable equipment • Furnace must be less than 225 million Btuh • Furnaces must meet minimum efficiency of 92% AFUE • Equipment must use natural-gas fuel
A24: Natural Gas Furnace <=225 kBTU, minimum 92% AFUE | E24: kBTU | J24: =IFERROR(IF(I24="",VLOOKUP(M24,Baseline_Eff_lookup,4,FALSE),I24),"") ->  | K24: EFF % | M24: =IFERROR(VLOOKUP(L24,DateRange_lookup,2,FALSE),"") ->  | N24: =IFERROR(VLOOKUP(C24,EFLH_lookup,3,FALSE),"") ->  | O24: =IFERROR(((((D24*1000)*F24/(IF(H24="yes",J24*(1-Lookups!$I$10)^(2016-'Non-Lighting Rebate Estimator'!L24),Lookups!$D$30)))-(D24*1000))*N24/1000000)*B24,"") ->  | P24: dekatherms/ unit | Q24: 4071 | R24: kWh/Unit | S24: =ROUND(IF(H24="yes",IF(F24="",'Incremental Cost'!$I$25,IF(F24=92%,'Incremental Cost'!$I$25,('Incremental Cost'!$I$25+'Incremental Cost'!$M19))),IF(F24="",'Incremental Cost'!$H$25,IF(F24=92%,'Incremental Cost'!$H$25,('Incremental Cost'!$H$25+'Incremental Cost'!$M19)))),0) -> 100 | T24: $/unit | U24: =B24 -> 0 | V24: =IF((U24*S24)>5000,5000,(U24*S24)) -> 0 | W24: =IFERROR(V24/((O24*10)*Lookups!$M$4),"") ->  | X24: ='Incremental Cost'!$G$25 -> 80 | Y24: =IFERROR((V24+X24)/(O24*10*Lookups!$M$4),"") ->  | Z24: • Rebates for new equipment replacing currently operating & inoperable equipment • Furnace must be less than 225 million Btuh • Furnaces must meet minimum efficiency of 92% AFUE • Equipment must use natural-gas fuel
A25: Air Conditioning
J26: =IFERROR(IF(I26="",VLOOKUP(M26,Baseline_Eff_lookup,6,FALSE),I26),"") ->  | U26: Tons | W26: $/metric ton | Y26: $/metric ton
A27: Rooftop AC Units, <=5.4 tons, 17.0 SEER | E27: tons | J27: =IFERROR(IF(I27="",VLOOKUP(M27,Baseline_Eff_lookup,6,FALSE),I27),"") ->  | K27: SEER | M27: =IFERROR(VLOOKUP(L27,DateRange_lookup,2,FALSE),"") ->  | N27: =IFERROR(VLOOKUP(C27,EFLH_lookup,3,FALSE),"") ->  | O27: =IFERROR(IFERROR(((D27*12000)/1000)*N27*((1/(IF(H27="yes",J27*(1-Lookups!$I$9)^(2016-'Non-Lighting Rebate Estimator'!L27),Lookups!$F$30)))-(1/IF(G27="Yes",F27*Lookups!E$44,F27))),"")*B27,"") ->  | P27: kWh/unit | Q27: 595 | R27: kWh/Unit | S27: =ROUND(IF(H27="yes",IF(F27="",'Incremental Cost'!$I$50,IF(F27=17,'Incremental Cost'!$I$50,('Incremental Cost'!$I$50+('Incremental Cost'!$M39*((F27-17)))))),IF(F27="",'Incremental Cost'!$H$50,IF(F27=17,'Incremental Cost'!$H$50,('Incremental Cost'!$H$50+('Incremental Cost'!$M39*((F27-17))))))),0) -> 79 | T27: $/ton | U27: =D27 -> 0 | V27: =IF((U27*S27)*B27>5000,5000,(U27*S27+IF(G27="yes",250,0))*B27) -> 0 | W27: =IFERROR(V27/(O27*Lookups!$M$3),"") ->  | X27: =IFERROR(U27*'Incremental Cost'!$G$50,"") -> 0 | Y27: =IFERROR((V27+X27)/(O27*Lookups!$M$3),"") ->  | Z27: • Rebates for new equipment replacing currently operating & inoperable equipment • Equipment must be currently rated at AHRI standards. • Equipment must use a minimum ozone-depleting refrigerant such as R- 22, R-123, and R-134 Rooftop AC Units • Equipment must be 20 tons or less • Tier 2 equipment less than 5.4 tons must be minimum 17.0 SEER • Tier 2 equipment between 5.5 and 11.3 tons must be minimum 12.0 EER • Tier 2 equipment between 11.4 and 20 tons must be minimum 12.0 EER • Refer to Consortium of Energy Efficiency for listing of Tier 2 equipment (http://www.cee1.org/com/hecac/hecac-tiers.pdf) Split Systems • Equipment must be less than 5.4 tons and must be minimum 15 SEER • Condensing unit and coil must both be newly installed to receive a rebate. • Efficiencies will be based on the condensing unit and coil combination rated by AHRI. Condensing Units • Equipment must be minimum 15 SEER
A28: Rooftop AC Units, <=5.4 tons, 17.0 SEER | E28: tons | J28: =IFERROR(IF(I28="",VLOOKUP(M28,Baseline_Eff_lookup,6,FALSE),I28),"") ->  | K28: SEER | M28: =IFERROR(VLOOKUP(L28,DateRange_lookup,2,FALSE),"") ->  | N28: =IFERROR(VLOOKUP(C28,EFLH_lookup,3,FALSE),"") ->  | O28: =IFERROR(IFERROR(((D28*12000)/1000)*N28*((1/(IF(H28="yes",J28*(1-Lookups!$I$9)^(2016-'Non-Lighting Rebate Estimator'!L28),Lookups!$F$30)))-(1/IF(G28="Yes",F28*Lookups!E$44,F28))),"")*B28,"") ->  | P28: kWh/unit | Q28: 595 | R28: kWh/Unit | S28: =ROUND(IF(H28="yes",IF(F28="",'Incremental Cost'!$I$50,IF(F28=17,'Incremental Cost'!$I$50,('Incremental Cost'!$I$50+('Incremental Cost'!$M40*((F28-17)))))),IF(F28="",'Incremental Cost'!$H$50,IF(F28=17,'Incremental Cost'!$H$50,('Incremental Cost'!$H$50+('Incremental Cost'!$M40*((F28-17))))))),0) -> 79 | T28: $/ton | U28: 0 | V28: =IF((U28*S28)*B28>5000,5000,(U28*S28+IF(G28="yes",250,0))*B28) -> 0 | W28: =IFERROR(V28/(O28*Lookups!$M$3),"") ->  | X28: =IFERROR(U28*'Incremental Cost'!$G$50,"") -> 0 | Y28: =IFERROR((V28+X28)/(O28*Lookups!$M$3),"") -> 
A29: Rooftop AC Units, <=5.4 tons, 17.0 SEER | E29: tons | J29: =IFERROR(IF(I29="",VLOOKUP(M29,Baseline_Eff_lookup,6,FALSE),I29),"") ->  | K29: SEER | O29: =IFERROR(IFERROR(((D29*12000)/1000)*N29*((1/(IF(H29="yes",J29*(1-Lookups!$I$9)^(2016-'Non-Lighting Rebate Estimator'!L29),Lookups!$F$30)))-(1/IF(G29="Yes",F29*Lookups!E$44,F29))),"")*B29,"") ->  | P29: kWh/unit | Q29: 595 | R29: kWh/Unit | S29: =ROUND(IF(H29="yes",IF(F29="",'Incremental Cost'!$I$50,IF(F29=17,'Incremental Cost'!$I$50,('Incremental Cost'!$I$50+('Incremental Cost'!$M41*((F29-17)))))),IF(F29="",'Incremental Cost'!$H$50,IF(F29=17,'Incremental Cost'!$H$50,('Incremental Cost'!$H$50+('Incremental Cost'!$M41*((F29-17))))))),0) -> 79 | T29: $/ton | U29: 0 | V29: =IF((U29*S29)*B29>5000,5000,(U29*S29+IF(G29="yes",250,0))*B29) -> 0 | W29: =IFERROR(V29/(O29*Lookups!$M$3),"") ->  | X29: =IFERROR(U29*'Incremental Cost'!$G$50,"") -> 0 | Y29: =IFERROR((V29+X29)/(O29*Lookups!$M$3),"") -> 
A30: Rooftop AC Units, <=5.4 tons, 17.0 SEER | E30: tons | J30: =IFERROR(IF(I30="",VLOOKUP(M30,Baseline_Eff_lookup,6,FALSE),I30),"") ->  | K30: SEER | M30: =IFERROR(VLOOKUP(L30,DateRange_lookup,2,FALSE),"") ->  | N30: =IFERROR(VLOOKUP(C30,EFLH_lookup,3,FALSE),"") ->  | O30: =IFERROR(IFERROR(((D30*12000)/1000)*N30*((1/(IF(H30="yes",J30*(1-Lookups!$I$9)^(2016-'Non-Lighting Rebate Estimator'!L30),Lookups!$F$30)))-(1/IF(G30="Yes",F30*Lookups!E$44,F30))),"")*B30,"") ->  | P30: kWh/unit | Q30: 595 | R30: kWh/Unit | S30: =ROUND(IF(H30="yes",IF(F30="",'Incremental Cost'!$I$50,IF(F30=17,'Incremental Cost'!$I$50,('Incremental Cost'!$I$50+('Incremental Cost'!$M42*((F30-17)))))),IF(F30="",'Incremental Cost'!$H$50,IF(F30=17,'Incremental Cost'!$H$50,('Incremental Cost'!$H$50+('Incremental Cost'!$M42*((F30-17))))))),0) -> 79 | T30: $/ton | U30: =D30 -> 0 | V30: =IF((U30*S30)*B30>5000,5000,(U30*S30+IF(G30="yes",250,0))*B30) -> 0 | W30: =IFERROR(V30/(O30*Lookups!$M$3),"") ->  | X30: =IFERROR(U30*'Incremental Cost'!$G$50,"") -> 0 | Y30: =IFERROR((V30+X30)/(O30*Lookups!$M$3),"") -> 
A31: Rooftop AC Units, 5.5 - 11.3 tons, 12.0 EER | E31: tons | J31: =IFERROR(IF(I31="",VLOOKUP(M31,Baseline_Eff_lookup,6,FALSE),I31),"") ->  | K31: EER | O31: =IFERROR(IFERROR(((D31*12000)/1000)*N31*((1/(IF(H31="yes",J31*(1-Lookups!$I$9)^(2016-'Non-Lighting Rebate Estimator'!L31),Lookups!$H$30)))-(1/IF(G31="Yes",F31*Lookups!E$44,F31))),"")*B31,"") ->  | P31: kWh/unit | Q31: 1750 | R31: kWh/Unit | S31: =ROUND(IF(H31="yes",IF(F31="",'Incremental Cost'!$I$50,IF(F31=12,'Incremental Cost'!$I$50,('Incremental Cost'!$I$50+('Incremental Cost'!$M43*((F31-12)))))),IF(F31="",'Incremental Cost'!$H$50,IF(F31=12,'Incremental Cost'!$H$50,('Incremental Cost'!$H$50+('Incremental Cost'!$M43*((F31-12))))))),0) -> 79 | T31: $/ton | U31: 0 | V31: =IF((U31*S31)*B31>5000,5000,(U31*S31+IF(G31="yes",250,0))*B31) -> 0 | W31: =IFERROR(V31/(O31*Lookups!$M$3),"") ->  | X31: =IFERROR(U31*'Incremental Cost'!$G$50,"") -> 0 | Y31: =IFERROR((V31+X31)/(O31*Lookups!$M$3),"") -> 
A32: Rooftop AC Units, 5.5 - 11.3 tons, 12.0 EER | E32: tons | J32: =IFERROR(IF(I32="",VLOOKUP(M32,Baseline_Eff_lookup,8,FALSE),I32),"") ->  | K32: EER | M32: =IFERROR(VLOOKUP(L32,DateRange_lookup,2,FALSE),"") ->  | N32: =IFERROR(VLOOKUP(C32,EFLH_lookup,3,FALSE),"") ->  | O32: =IFERROR(IFERROR(((D32*12000)/1000)*N32*((1/(IF(H32="yes",J32*(1-Lookups!$I$9)^(2016-'Non-Lighting Rebate Estimator'!L32),Lookups!$H$30)))-(1/IF(G32="Yes",F32*Lookups!E$44,F32))),"")*B32,"") ->  | P32: kWh/unit | Q32: 1750 | R32: kWh/Unit | S32: =ROUND(IF(H32="yes",IF(F32="",'Incremental Cost'!$I$50,IF(F32=12,'Incremental Cost'!$I$50,('Incremental Cost'!$I$50+('Incremental Cost'!$M44*((F32-12)))))),IF(F32="",'Incremental Cost'!$H$50,IF(F32=12,'Incremental Cost'!$H$50,('Incremental Cost'!$H$50+('Incremental Cost'!$M44*((F32-12))))))),0) -> 79 | T32: $/ton | U32: 0 | V32: =IF((U32*S32)*B32>5000,5000,(U32*S32+IF(G32="yes",250,0))*B32) -> 0 | W32: =IFERROR(V32/(O32*Lookups!$M$3),"") ->  | X32: =IFERROR(U32*'Incremental Cost'!$G$50,"") -> 0 | Y32: =IFERROR((V32+X32)/(O32*Lookups!$M$3),"") -> 
A33: Rooftop AC Units, 5.5 - 11.3 tons, 12.0 EER | E33: tons | J33: =IFERROR(IF(I33="",VLOOKUP(M33,Baseline_Eff_lookup,8,FALSE),I33),"") ->  | K33: EER | O33: =IFERROR(IFERROR(((D33*12000)/1000)*N33*((1/(IF(H33="yes",J33*(1-Lookups!$I$9)^(2016-'Non-Lighting Rebate Estimator'!L33),Lookups!$H$30)))-(1/IF(G33="Yes",F33*Lookups!E$44,F33))),"")*B33,"") ->  | P33: kWh/unit | Q33: 1750 | R33: kWh/Unit | S33: =ROUND(IF(H33="yes",IF(F33="",'Incremental Cost'!$I$50,IF(F33=12,'Incremental Cost'!$I$50,('Incremental Cost'!$I$50+('Incremental Cost'!$M45*((F33-12)))))),IF(F33="",'Incremental Cost'!$H$50,IF(F33=12,'Incremental Cost'!$H$50,('Incremental Cost'!$H$50+('Incremental Cost'!$M45*((F33-12))))))),0) -> 79 | T33: $/ton | U33: 0 | V33: =IF((U33*S33)*B33>5000,5000,(U33*S33+IF(G33="yes",250,0))*B33) -> 0 | W33: =IFERROR(V33/(O33*Lookups!$M$3),"") ->  | X33: =IFERROR(U33*'Incremental Cost'!$G$50,"") -> 0 | Y33: =IFERROR((V33+X33)/(O33*Lookups!$M$3),"") -> 
A34: Rooftop AC Units, 5.5 - 11.3 tons, 12.0 EER | E34: tons | J34: =IFERROR(IF(I34="",VLOOKUP(M34,Baseline_Eff_lookup,8,FALSE),I34),"") ->  | K34: EER | M34: =IFERROR(VLOOKUP(L34,DateRange_lookup,2,FALSE),"") ->  | N34: =IFERROR(VLOOKUP(C34,EFLH_lookup,3,FALSE),"") ->  | O34: =IFERROR(IFERROR(((D34*12000)/1000)*N34*((1/(IF(H34="yes",J34*(1-Lookups!$I$9)^(2016-'Non-Lighting Rebate Estimator'!L34),Lookups!$H$30)))-(1/IF(G34="Yes",F34*Lookups!E$44,F34))),"")*B34,"") ->  | P34: kWh/unit | Q34: 1750 | R34: kWh/Unit | S34: =ROUND(IF(H34="yes",IF(F34="",'Incremental Cost'!$I$50,IF(F34=12,'Incremental Cost'!$I$50,('Incremental Cost'!$I$50+('Incremental Cost'!$M46*((F34-12)))))),IF(F34="",'Incremental Cost'!$H$50,IF(F34=12,'Incremental Cost'!$H$50,('Incremental Cost'!$H$50+('Incremental Cost'!$M46*((F34-12))))))),0) -> 79 | T34: $/ton | U34: =D34 -> 0 | V34: =IF((U34*S34)*B34>5000,5000,(U34*S34+IF(G34="yes",250,0))*B34) -> 0 | W34: =IFERROR(V34/(O34*Lookups!$M$3),"") ->  | X34: =IFERROR(U34*'Incremental Cost'!$G$50,"") -> 0 | Y34: =IFERROR((V34+X34)/(O34*Lookups!$M$3),"") -> 
A35: Rooftop AC Units, 11.4 - 20 tons, 12.0 EER | E35: tons | J35: =IFERROR(IF(I35="",VLOOKUP(M35,Baseline_Eff_lookup,8,FALSE),I35),"") ->  | K35: EER | O35: =IFERROR(IFERROR(((D35*12000)/1000)*N35*((1/(IF(H35="yes",J35*(1-Lookups!$I$9)^(2016-'Non-Lighting Rebate Estimator'!L35),Lookups!$J$30)))-(1/IF(G35="Yes",F35*Lookups!E$44,F35))),"")*B35,"") ->  | P35: kWh/unit | Q35: 3603 | R35: kWh/Unit | S35: =ROUND(IF(H35="yes",IF(F35="",'Incremental Cost'!$I$50,IF(F35=12,'Incremental Cost'!$I$50,('Incremental Cost'!$I$50+('Incremental Cost'!$M47*((F35-12)))))),IF(F35="",'Incremental Cost'!$H$50,IF(F35=12,'Incremental Cost'!$H$50,('Incremental Cost'!$H$50+('Incremental Cost'!$M47*((F35-12))))))),0) -> 79 | T35: $/ton | U35: 0 | V35: =IF((U35*S35)*B35>5000,5000,(U35*S35+IF(G35="yes",250,0))*B35) -> 0 | W35: =IFERROR(V35/(O35*Lookups!$M$3),"") ->  | X35: =IFERROR(U35*'Incremental Cost'!$G$50,"") -> 0 | Y35: =IFERROR((V35+X35)/(O35*Lookups!$M$3),"") -> 
A36: Rooftop AC Units, 11.4 - 20 tons, 12.0 EER | E36: tons | J36: =IFERROR(IF(I36="",VLOOKUP(M36,Baseline_Eff_lookup,10,FALSE),I36),"") ->  | K36: EER | M36: =IFERROR(VLOOKUP(L36,DateRange_lookup,2,FALSE),"") ->  | N36: =IFERROR(VLOOKUP(C36,EFLH_lookup,3,FALSE),"") ->  | O36: =IFERROR(IFERROR(((D36*12000)/1000)*N36*((1/(IF(H36="yes",J36*(1-Lookups!$I$9)^(2016-'Non-Lighting Rebate Estimator'!L36),Lookups!$J$30)))-(1/IF(G36="Yes",F36*Lookups!E$44,F36))),"")*B36,"") ->  | P36: kWh/unit | Q36: 3603 | R36: kWh/Unit | S36: =ROUND(IF(H36="yes",IF(F36="",'Incremental Cost'!$I$50,IF(F36=12,'Incremental Cost'!$I$50,('Incremental Cost'!$I$50+('Incremental Cost'!$M48*((F36-12)))))),IF(F36="",'Incremental Cost'!$H$50,IF(F36=12,'Incremental Cost'!$H$50,('Incremental Cost'!$H$50+('Incremental Cost'!$M48*((F36-12))))))),0) -> 79 | T36: $/ton | U36: =D36 -> 0 | V36: =IF((U36*S36)*B36>5000,5000,(U36*S36+IF(G36="yes",250,0))*B36) -> 0 | W36: =IFERROR(V36/(O36*Lookups!$M$3),"") ->  | X36: =IFERROR(U36*'Incremental Cost'!$G$50,"") -> 0 | Y36: =IFERROR((V36+X36)/(O36*Lookups!$M$3),"") -> 
A37: Rooftop AC Units, 11.4 - 20 tons, 12.0 EER | E37: tons | J37: =IFERROR(IF(I37="",VLOOKUP(M37,Baseline_Eff_lookup,10,FALSE),I37),"") ->  | K37: EER | O37: =IFERROR(IFERROR(((D37*12000)/1000)*N37*((1/(IF(H37="yes",J37*(1-Lookups!$I$9)^(2016-'Non-Lighting Rebate Estimator'!L37),Lookups!$J$30)))-(1/IF(G37="Yes",F37*Lookups!E$44,F37))),"")*B37,"") ->  | P37: kWh/unit | Q37: 3603 | R37: kWh/Unit | S37: =ROUND(IF(H37="yes",IF(F37="",'Incremental Cost'!$I$50,IF(F37=12,'Incremental Cost'!$I$50,('Incremental Cost'!$I$50+('Incremental Cost'!$M49*((F37-12)))))),IF(F37="",'Incremental Cost'!$H$50,IF(F37=12,'Incremental Cost'!$H$50,('Incremental Cost'!$H$50+('Incremental Cost'!$M49*((F37-12))))))),0) -> 79 | T37: $/ton | U37: 0 | V37: =IF((U37*S37)*B37>5000,5000,(U37*S37+IF(G37="yes",250,0))*B37) -> 0 | W37: =IFERROR(V37/(O37*Lookups!$M$3),"") ->  | X37: =IFERROR(U37*'Incremental Cost'!$G$50,"") -> 0 | Y37: =IFERROR((V37+X37)/(O37*Lookups!$M$3),"") -> 
A38: Rooftop AC Units, 11.4 - 20 tons, 12.0 EER | E38: tons | J38: =IFERROR(IF(I38="",VLOOKUP(M38,Baseline_Eff_lookup,10,FALSE),I38),"") ->  | K38: EER | M38: =IFERROR(VLOOKUP(L38,DateRange_lookup,2,FALSE),"") ->  | N38: =IFERROR(VLOOKUP(C38,EFLH_lookup,3,FALSE),"") ->  | O38: =IFERROR(IFERROR(((D38*12000)/1000)*N38*((1/(IF(H38="yes",J38*(1-Lookups!$I$9)^(2016-'Non-Lighting Rebate Estimator'!L38),Lookups!$J$30)))-(1/IF(G38="Yes",F38*Lookups!E$44,F38))),"")*B38,"") ->  | P38: kWh/unit | Q38: 3603 | R38: kWh/Unit | S38: =ROUND(IF(H38="yes",IF(F38="",'Incremental Cost'!$I$50,IF(F38=12,'Incremental Cost'!$I$50,('Incremental Cost'!$I$50+('Incremental Cost'!$M50*((F38-12)))))),IF(F38="",'Incremental Cost'!$H$50,IF(F38=12,'Incremental Cost'!$H$50,('Incremental Cost'!$H$50+('Incremental Cost'!$M50*((F38-12))))))),0) -> 79 | T38: $/ton | U38: =D38 -> 0 | V38: =IF((U38*S38)*B38>5000,5000,(U38*S38+IF(G38="yes",250,0))*B38) -> 0 | W38: =IFERROR(V38/(O38*Lookups!$M$3),"") ->  | X38: =IFERROR(U38*'Incremental Cost'!$G$50,"") -> 0 | Y38: =IFERROR((V38+X38)/(O38*Lookups!$M$3),"") -> 
A39: Split Systems <=5.4 tons, 15 SEER | E39: tons | J39: =IFERROR(IF(I39="",VLOOKUP(M39,Baseline_Eff_lookup,6,FALSE),I39),"") ->  | K39: SEER | O39: =IFERROR(IFERROR(((D39*12000)/1000)*N39*((1/(IF(H39="yes",J39*(1-Lookups!$I$9)^(2016-'Non-Lighting Rebate Estimator'!L39),Lookups!$F$30)))-(1/F39)),"")*B39,"") ->  | P39: kWh/unit | Q39: 1870 | R39: kWh/Unit | S39: =ROUND(IF(H39="yes",IF(F39="",'Incremental Cost'!$I$50,IF(F39=15,'Incremental Cost'!$I$50,('Incremental Cost'!$I$50+('Incremental Cost'!$M51*((F39-15)))))),IF(F39="",'Incremental Cost'!$H$50,IF(F39=15,'Incremental Cost'!$H$50,('Incremental Cost'!$H$50+('Incremental Cost'!$M51*((F39-15))))))),0) -> 79 | T39: $/ton | U39: 0 | V39: =IF((U39*S39)*B39>5000,5000,(U39*S39+IF(G39="yes",250,0))*B39) -> 0 | W39: =IFERROR(V39/(O39*Lookups!$M$3),"") ->  | X39: =IFERROR(U39*'Incremental Cost'!$G$50,"") -> 0 | Y39: =IFERROR((V39+X39)/(O39*Lookups!$M$3),"") -> 
A40: Split Systems <=5.4 tons, 15 SEER | E40: tons | K40: SEER | M40: =IFERROR(VLOOKUP(L40,DateRange_lookup,2,FALSE),"") ->  | N40: =IFERROR(VLOOKUP(C40,EFLH_lookup,3,FALSE),"") ->  | O40: =IFERROR(IFERROR(((D40*12000)/1000)*N40*((1/(IF(H40="yes",J40*(1-Lookups!$I$9)^(2016-'Non-Lighting Rebate Estimator'!L40),Lookups!$F$30)))-(1/F40)),"")*B40,"") ->  | P40: kWh/unit | Q40: 1870 | R40: kWh/Unit | S40: =ROUND(IF(H40="yes",IF(F40="",'Incremental Cost'!$I$50,IF(F40=15,'Incremental Cost'!$I$50,('Incremental Cost'!$I$50+('Incremental Cost'!$M52*((F40-15)))))),IF(F40="",'Incremental Cost'!$H$50,IF(F40=15,'Incremental Cost'!$H$50,('Incremental Cost'!$H$50+('Incremental Cost'!$M52*((F40-15))))))),0) -> 79 | T40: $/ton | U40: =D40 -> 0 | V40: =IF((U40*S40)*B40>5000,5000,(U40*S40+IF(G40="yes",250,0))*B40) -> 0 | W40: =IFERROR(V40/(O40*Lookups!$M$3),"") ->  | X40: =IFERROR(U40*'Incremental Cost'!$G$50,"") -> 0 | Y40: =IFERROR((V40+X40)/(O40*Lookups!$M$3),"") -> 
A41: Split Systems <=5.4 tons, 15 SEER | E41: tons | K41: SEER | O41: =IFERROR(IFERROR(((D41*12000)/1000)*N41*((1/(IF(H41="yes",J41*(1-Lookups!$I$9)^(2016-'Non-Lighting Rebate Estimator'!L41),Lookups!$F$30)))-(1/F41)),"")*B41,"") ->  | P41: kWh/unit | Q41: 1870 | R41: kWh/Unit | S41: =ROUND(IF(H41="yes",IF(F41="",'Incremental Cost'!$I$50,IF(F41=15,'Incremental Cost'!$I$50,('Incremental Cost'!$I$50+('Incremental Cost'!$M53*((F41-15)))))),IF(F41="",'Incremental Cost'!$H$50,IF(F41=15,'Incremental Cost'!$H$50,('Incremental Cost'!$H$50+('Incremental Cost'!$M53*((F41-15))))))),0) -> 79 | T41: $/ton | U41: 0 | V41: =IF((U41*S41)*B41>5000,5000,(U41*S41+IF(G41="yes",250,0))*B41) -> 0 | W41: =IFERROR(V41/(O41*Lookups!$M$3),"") ->  | X41: =IFERROR(U41*'Incremental Cost'!$G$50,"") -> 0 | Y41: =IFERROR((V41+X41)/(O41*Lookups!$M$3),"") -> 
A42: Split Systems <=5.4 tons, 15 SEER | E42: tons | K42: SEER | M42: =IFERROR(VLOOKUP(L42,DateRange_lookup,2,FALSE),"") ->  | N42: =IFERROR(VLOOKUP(C42,EFLH_lookup,3,FALSE),"") ->  | O42: =IFERROR(IFERROR(((D42*12000)/1000)*N42*((1/(IF(H42="yes",J42*(1-Lookups!$I$9)^(2016-'Non-Lighting Rebate Estimator'!L42),Lookups!$F$30)))-(1/F42)),"")*B42,"") ->  | P42: kWh/unit | Q42: 1870 | R42: kWh/Unit | S42: =ROUND(IF(H42="yes",IF(F42="",'Incremental Cost'!$I$50,IF(F42=15,'Incremental Cost'!$I$50,('Incremental Cost'!$I$50+('Incremental Cost'!$M54*((F42-15)))))),IF(F42="",'Incremental Cost'!$H$50,IF(F42=15,'Incremental Cost'!$H$50,('Incremental Cost'!$H$50+('Incremental Cost'!$M54*((F42-15))))))),0) -> 79 | T42: $/ton | U42: =D42 -> 0 | V42: =IF((U42*S42)*B42>5000,5000,(U42*S42+IF(G42="yes",250,0))*B42) -> 0 | W42: =IFERROR(V42/(O42*Lookups!$M$3),"") ->  | X42: =IFERROR(U42*'Incremental Cost'!$G$50,"") -> 0 | Y42: =IFERROR((V42+X42)/(O42*Lookups!$M$3),"") -> 
A43: Condensing Units 15 SEER | E43: tons | K43: SEER | O43: =IFERROR(IFERROR(((D43*12000)/1000)*N43*((1/(IF(H43="yes",J43*(1-Lookups!I$9)^(2016-'Non-Lighting Rebate Estimator'!L43),Lookups!$F$30)))-(1/F43)),"")*B43,"") ->  | P43: kWh/unit | Q43: 1120 | R43: kWh/Unit | S43: =ROUND(IF(H43="yes",IF(F43="",'Incremental Cost'!$I$50,IF(F43=15,'Incremental Cost'!$I$50,('Incremental Cost'!$I$50+('Incremental Cost'!$M55*((F43-15)))))),IF(F43="",'Incremental Cost'!$H$50,IF(F43=15,'Incremental Cost'!$H$50,('Incremental Cost'!$H$50+('Incremental Cost'!$M55*((F43-15))))))),0) -> 79 | T43: $/ton | U43: 0 | V43: =IF((U43*S43)*B43>5000,5000,(U43*S43+IF(G43="yes",250,0))*B43) -> 0 | W43: =IFERROR(V43/(O43*Lookups!$M$3),"") ->  | X43: =IFERROR(U43*'Incremental Cost'!$G$50,"") -> 0 | Y43: =IFERROR((V43+X43)/(O43*Lookups!$M$3),"") -> 
A44: Condensing Units 15 SEER | E44: tons | K44: SEER | O44: =IFERROR(IFERROR(((D44*12000)/1000)*N44*((1/(IF(H44="yes",J44*(1-Lookups!I$9)^(2016-'Non-Lighting Rebate Estimator'!L44),Lookups!$F$30)))-(1/F44)),"")*B44,"") ->  | P44: kWh/unit | Q44: 1120 | R44: kWh/Unit | S44: =ROUND(IF(H44="yes",IF(F44="",'Incremental Cost'!$I$50,IF(F44=15,'Incremental Cost'!$I$50,('Incremental Cost'!$I$50+('Incremental Cost'!$M56*((F44-15)))))),IF(F44="",'Incremental Cost'!$H$50,IF(F44=15,'Incremental Cost'!$H$50,('Incremental Cost'!$H$50+('Incremental Cost'!$M56*((F44-15))))))),0) -> 79 | T44: $/ton | U44: 0 | V44: =IF((U44*S44)*B44>5000,5000,(U44*S44+IF(G44="yes",250,0))*B44) -> 0 | W44: =IFERROR(V44/(O44*Lookups!$M$3),"") ->  | X44: =IFERROR(U44*'Incremental Cost'!$G$50,"") -> 0 | Y44: =IFERROR((V44+X44)/(O44*Lookups!$M$3),"") -> 
A45: Condensing Units 15 SEER | E45: tons | K45: SEER | M45: =IFERROR(VLOOKUP(L45,DateRange_lookup,2,FALSE),"") ->  | N45: =IFERROR(VLOOKUP(C45,EFLH_lookup,3,FALSE),"") ->  | O45: =IFERROR(IFERROR(((D45*12000)/1000)*N45*((1/(IF(H45="yes",J45*(1-Lookups!I$9)^(2016-'Non-Lighting Rebate Estimator'!L45),Lookups!$F$30)))-(1/F45)),"")*B45,"") ->  | P45: kWh/unit | Q45: 1120 | R45: kWh/Unit | S45: =ROUND(IF(H45="yes",IF(F45="",'Incremental Cost'!$I$50,IF(F45=15,'Incremental Cost'!$I$50,('Incremental Cost'!$I$50+('Incremental Cost'!$M57*((F45-15)))))),IF(F45="",'Incremental Cost'!$H$50,IF(F45=15,'Incremental Cost'!$H$50,('Incremental Cost'!$H$50+('Incremental Cost'!$M57*((F45-15))))))),0) -> 79 | T45: $/ton | U45: =D45 -> 0 | V45: =IF((U45*S45)*B45>5000,5000,(U45*S45+IF(G45="yes",250,0))*B45) -> 0 | W45: =IFERROR(V45/(O45*Lookups!$M$3),"") ->  | X45: =IFERROR(U45*'Incremental Cost'!$G$50,"") -> 0 | Y45: =IFERROR((V45+X45)/(O45*Lookups!$M$3),"") -> 
A46: Condensing Units 15 SEER | E46: tons | K46: SEER | O46: =IFERROR(IFERROR(((D46*12000)/1000)*N46*((1/(IF(H46="yes",J46*(1-Lookups!I$9)^(2016-'Non-Lighting Rebate Estimator'!L46),Lookups!$F$30)))-(1/F46)),"")*B46,"") ->  | P46: kWh/unit | Q46: 1120 | R46: kWh/Unit | S46: =ROUND(IF(H46="yes",IF(F46="",'Incremental Cost'!$I$50,IF(F46=15,'Incremental Cost'!$I$50,('Incremental Cost'!$I$50+('Incremental Cost'!$M58*((F46-15)))))),IF(F46="",'Incremental Cost'!$H$50,IF(F46=15,'Incremental Cost'!$H$50,('Incremental Cost'!$H$50+('Incremental Cost'!$M58*((F46-15))))))),0) -> 79 | T46: $/ton | U46: 0 | V46: =IF((U46*S46)*B46>5000,5000,(U46*S46+IF(G46="yes",250,0))*B46) -> 0 | W46: =IFERROR(V46/(O46*Lookups!$M$3),"") ->  | X46: =IFERROR(U46*'Incremental Cost'!$G$50,"") -> 0 | Y46: =IFERROR((V46+X46)/(O46*Lookups!$M$3),"") -> 
A47: Air Side Economizers for all RTU's
D48: RTU Capacity | Q48: Deemed Savings | R48: Deemed Savings Units
A49: Air Side Economizers for all RTU's | E49: tons | F49: n/a | H49: n/a | I49: n/a | J49: n/a | K49: n/a | M49: =IFERROR(VLOOKUP(L49,DateRange_lookup,2,FALSE),"") ->  | N49: =IFERROR(VLOOKUP(C49,EFLH_lookup,3,FALSE),"") ->  | O49: =IFERROR(IFERROR(VLOOKUP(C49,Economizer_Savings_Lookup,2,FALSE)*D49,"")*B49,"") ->  | P49: kwh/unit | Q49: 250 | R49: kWh/Unit | S49: 250 | T49: /unit | V49: =IF(S49*B49>5000,5000,S49*B49) -> 0 | W49: =IFERROR(V49/(O49*Lookups!$M$3),"") ->  | X49: 0 | Y49: =IFERROR((V49+X49)/(O49*Lookups!$M$3),"") ->  | Z49: • Economizer shall provide first stage cooling. • Mechanical cooling will start at second stage. • Economizer control shall include an outside air temperature sensor. • Replaced equipment must have a fixed fraction outside air intake of at least 5%. • Any size air-handling unit will qualify. • Installing contractor shall advise owner that yearly preventative maintenance is recommended to ensure proper function over time. • This line is intended for economizers added to exisitng units. DO NOT include economizers here that are integral to new AC units recorded above.
A50: Air Side Economizers for all RTU's | E50: tons | F50: n/a | H50: n/a | I50: n/a | J50: n/a | K50: n/a | O50: =IFERROR(IFERROR(VLOOKUP(C50,Economizer_Savings_Lookup,2,FALSE)*D50,"")*B50,"") ->  | P50: kwh/unit | Q50: 250 | R50: kWh/Unit | S50: 250 | T50: /unit | V50: =IF(S50*B50>5000,5000,S50*B50) -> 0 | W50: =IFERROR(V50/(O50*Lookups!$M$3),"") ->  | X50: 0 | Y50: =IFERROR((V50+X50)/(O50*Lookups!$M$3),"") ->  | Z50: • Economizer shall provide first stage cooling. • Mechanical cooling will start at second stage. • Economizer control shall include an outside air temperature sensor. • Replaced equipment must have a fixed fraction outside air intake of at least 5%. • Any size air-handling unit will qualify. • Installing contractor shall advise owner that yearly preventative maintenance is recommended to ensure proper function over time. • This line is intended for economizers added to exisitng units. DO NOT include economizers here that are integral to new AC units recorded above.
A51: Air Side Economizers for all RTU's | E51: tons | F51: n/a | H51: n/a | I51: n/a | J51: n/a | K51: n/a | M51: =IFERROR(VLOOKUP(L51,DateRange_lookup,2,FALSE),"") ->  | N51: =IFERROR(VLOOKUP(C51,EFLH_lookup,3,FALSE),"") ->  | O51: =IFERROR(IFERROR(VLOOKUP(C51,Economizer_Savings_Lookup,2,FALSE)*D51,"")*B51,"") ->  | P51: kwh/unit | Q51: 250 | R51: kWh/Unit | S51: 250 | T51: /unit | V51: 0 | W51: =IFERROR(V51/(O51*Lookups!$M$3),"") ->  | X51: 0 | Y51: =IFERROR((V51+X51)/(O51*Lookups!$M$3),"") ->  | Z51: • Economizer shall provide first stage cooling. • Mechanical cooling will start at second stage. • Economizer control shall include an outside air temperature sensor. • Replaced equipment must have a fixed fraction outside air intake of at least 5%. • Any size air-handling unit will qualify. • Installing contractor shall advise owner that yearly preventative maintenance is recommended to ensure proper function over time. • This line is intended for economizers added to exisitng units. DO NOT include economizers here that are integral to new AC units recorded above.
A52: Air Side Economizers for all RTU's | E52: tons | F52: n/a | H52: n/a | I52: n/a | J52: n/a | K52: n/a | O52: =IFERROR(IFERROR(VLOOKUP(C52,Economizer_Savings_Lookup,2,FALSE)*D52,"")*B52,"") ->  | P52: kwh/unit | Q52: 250 | R52: kWh/Unit | S52: 250 | T52: /unit | V52: 0 | W52: =IFERROR(V52/(O52*Lookups!$M$3),"") ->  | X52: 0 | Y52: =IFERROR((V52+X52)/(O52*Lookups!$M$3),"") ->  | Z52: • Economizer shall provide first stage cooling. • Mechanical cooling will start at second stage. • Economizer control shall include an outside air temperature sensor. • Replaced equipment must have a fixed fraction outside air intake of at least 5%. • Any size air-handling unit will qualify. • Installing contractor shall advise owner that yearly preventative maintenance is recommended to ensure proper function over time. • This line is intended for economizers added to exisitng units. DO NOT include economizers here that are integral to new AC units recorded above.
A53: Evaporative coolers
D54: Exisitng RTU Capacity | Q54: Deemed Savings | R54: Deemed Savings Units
A55: Indirect Evaporative Cooler | E55: tons | F55: n/a | G55: n/a | J55: =IFERROR(IF(I55="",VLOOKUP(M55,Baseline_Eff_lookup,6,FALSE),I55),"") ->  | K55: SEER | M55: =IFERROR(VLOOKUP(L55,DateRange_lookup,2,FALSE),"") ->  | N55: =IFERROR(VLOOKUP(C55,EFLH_lookup,3,FALSE),"") ->  | O55: =IFERROR((D55*12000)/1000*N55*(1/(IF(H55="yes",J55*(1-Lookups!$I$10)^(2016-'Non-Lighting Rebate Estimator'!L55),VLOOKUP(D55,EvapCooler_lookup,3,FALSE))))-((VLOOKUP(INT(D55),EvapCooler_lookup,2,FALSE))*Lookups!$B$69*Lookups!$B$70/Lookups!$B$71*(VLOOKUP('Non-Lighting Rebate Estimator'!C55,EFLH_lookup,2,FALSE))),"") ->  | P55: kWh/unit | Q55: 968 | R55: kWh/1600 cfm | S55: =IFERROR(IF(H55="Yes",'Incremental Cost'!H$87,'Incremental Cost'!H$87),"") -> 1 | T55: $/cfm | U55: 1000 | V55: =IF((U55*S55)*B55>5000,5000,(U55*S55)*B55) -> 0 | W55: =IFERROR(V55/(O55*Lookups!$M$3),"") ->  | X55: ='Incremental Cost'!F84 -> 0 | Y55: =IFERROR((V55+X55)/(O55*Lookups!$M$3),"") ->  | Z55: • Equipment must be permanently installed • Equipment must be indirect, hybrid, or two-stage evaporative cooling unit replacing DX cooling equipment. • Portable coolers or systems with vapor compression backup are not eligible • A minimum Media Saturation Effectiveness of 85% is required • Units must be installed with a remote thermostat and a periodic purge water control • Only conditioned CFM qualifies for rebate
A56: HVAC Fan VFD
A57: HVAC Fan VFD | E57: HP / RPM | F57: n/a | G57: n/a | H57: n/a | I57: n/a | J57: n/a | K57: n/a | L57: n/a | M57: =IFERROR(VLOOKUP(L57,DateRange_lookup,2,FALSE),"") ->  | N57: =IFERROR(VLOOKUP(C57,Fan_Operating_Hrs_lookup,4,FALSE),"") ->  | O57: =IFERROR(IFERROR(VLOOKUP(D57,VFD_HP_lookup,2,FALSE)*Lookups!B$52*Lookups!B$58*(1/VLOOKUP(D57,VFD_MotorEff_lookup,3,FALSE))*N57*Lookups!B$55*Lookups!B$56,"")*B57,"") ->  | P57: kWh/unit | Q57: .5 - 25 | R57: kW | S57: =IFERROR(VLOOKUP(D57,VFD_Rebate_lookup,4,FALSE),"") ->  | T57: $/unit | U57: =B57 -> 0 | V57: =IFERROR(IF(U57*S57>5000,5000,U57*S57),"") ->  | W57: =IFERROR(V57/(O57*Lookups!$M$3),"") ->  | X57: =IFERROR(VLOOKUP(D57,VFD_Rebate_lookup,5,FALSE),"") ->  | Y57: =IFERROR((V57+X57)/(O57*Lookups!$M$3),"") ->  | Z57: • Rebates will be offered for new equipment only • Motor replacement of currently operating equipment • Rebates available for motors and VFDs between 1 and 200 HP • Back-up equipment not eligible for rebates • Rebates are eligible for HVAC fan applications • Customers must scrap the previous motor themselves or have it scrapped by their installer. By signing the application, customers are acknowledging that the motor has been scrapped.
A58: HVAC Fan VFD | E58: HP / RPM | F58: n/a | G58: n/a | H58: n/a | I58: n/a | J58: n/a | K58: n/a | L58: n/a | M58: =IFERROR(VLOOKUP(L58,DateRange_lookup,2,FALSE),"") ->  | N58: =IFERROR(VLOOKUP(C58,Fan_Operating_Hrs_lookup,4,FALSE),"") ->  | O58: =IFERROR(IFERROR(VLOOKUP(D58,VFD_HP_lookup,2,FALSE)*Lookups!B$52*Lookups!B$58*(1/VLOOKUP(D58,VFD_MotorEff_lookup,3,FALSE))*N58*Lookups!B$55*Lookups!B$56,"")*B58,"") ->  | P58: kWh/unit | Q58: .5 - 25 | R58: kW | S58: =IFERROR(VLOOKUP(D58,VFD_Rebate_lookup,4,FALSE),"") ->  | T58: $/unit | U58: =B58 -> 0 | V58: =IFERROR(IF(U58*S58>5000,5000,U58*S58),"") ->  | W58: =IFERROR(V58/(O58*Lookups!$M$3),"") ->  | X58: =IFERROR(VLOOKUP(D58,VFD_Rebate_lookup,5,FALSE),"") ->  | Y58: =IFERROR((V58+X58)/(O58*Lookups!$M$3),"") ->  | Z58: • Rebates will be offered for new equipment only • Motor replacement of currently operating equipment • Rebates available for motors and VFDs between 1 and 200 HP • Back-up equipment not eligible for rebates • Rebates are eligible for HVAC fan applications • Customers must scrap the previous motor themselves or have it scrapped by their installer. By signing the application, customers are acknowledging that the motor has been scrapped.
A59: HVAC Fan VFD | E59: HP / RPM | F59: n/a | G59: n/a | H59: n/a | I59: n/a | J59: n/a | K59: n/a | L59: n/a | M59: =IFERROR(VLOOKUP(L59,DateRange_lookup,2,FALSE),"") ->  | N59: =IFERROR(VLOOKUP(C59,Fan_Operating_Hrs_lookup,4,FALSE),"") ->  | O59: =IFERROR(IFERROR(VLOOKUP(D59,VFD_HP_lookup,2,FALSE)*Lookups!B$52*Lookups!B$58*(1/VLOOKUP(D59,VFD_MotorEff_lookup,3,FALSE))*N59*Lookups!B$55*Lookups!B$56,"")*B59,"") ->  | P59: kWh/unit | Q59: .5 - 25 | R59: kW | S59: =IFERROR(VLOOKUP(D59,VFD_Rebate_lookup,4,FALSE),"") ->  | T59: $/unit | U59: =B59 -> 0 | W59: =IFERROR(V59/(O59*Lookups!$M$3),"") ->  | X59: =IFERROR(VLOOKUP(D59,VFD_Rebate_lookup,5,FALSE),"") ->  | Y59: =IFERROR((V59+X59)/(O59*Lookups!$M$3),"") ->  | Z59: • Rebates will be offered for new equipment only • Motor replacement of currently operating equipment • Rebates available for motors and VFDs between 1 and 200 HP • Back-up equipment not eligible for rebates • Rebates are eligible for HVAC fan applications • Customers must scrap the previous motor themselves or have it scrapped by their installer. By signing the application, customers are acknowledging that the motor has been scrapped.
A60: HVAC Fan VFD | E60: HP / RPM | F60: n/a | G60: n/a | H60: n/a | I60: n/a | J60: n/a | K60: n/a | L60: n/a | M60: =IFERROR(VLOOKUP(L60,DateRange_lookup,2,FALSE),"") ->  | N60: =IFERROR(VLOOKUP(C60,Fan_Operating_Hrs_lookup,4,FALSE),"") ->  | O60: =IFERROR(IFERROR(VLOOKUP(D60,VFD_HP_lookup,2,FALSE)*Lookups!B$52*Lookups!B$58*(1/VLOOKUP(D60,VFD_MotorEff_lookup,3,FALSE))*N60*Lookups!B$55*Lookups!B$56,"")*B60,"") ->  | P60: kWh/unit | Q60: .5 - 25 | R60: kW | S60: =IFERROR(VLOOKUP(D60,VFD_Rebate_lookup,4,FALSE),"") ->  | T60: $/unit | U60: =B60 -> 0 | W60: =IFERROR(V60/(O60*Lookups!$M$3),"") ->  | X60: =IFERROR(VLOOKUP(D60,VFD_Rebate_lookup,5,FALSE),"") ->  | Y60: =IFERROR((V60+X60)/(O60*Lookups!$M$3),"") ->  | Z60: • Rebates will be offered for new equipment only • Motor replacement of currently operating equipment • Rebates available for motors and VFDs between 1 and 200 HP • Back-up equipment not eligible for rebates • Rebates are eligible for HVAC fan applications • Customers must scrap the previous motor themselves or have it scrapped by their installer. By signing the application, customers are acknowledging that the motor has been scrapped.
A61: Programmable Thermostat
A62: Measure | B62: # of Units Being Rebated | C62: Building Type | D62: Conditioned Square Feet | O62: Calculated Savings | P62: Calculated Savings Unit | Q62: Deemed Savings | R62: Deemed Savings Units | S62: PACE Rebate | T62: Rebate Units | U62: Capacity Units | V62: PACE Reward | W62: $/ ton GHG-saved (PACE Rebate) | X62: Xcel Rebate | Y62: $/ ton GHG-saved (ES+Xcel Rebate) | Z62: Specifications
A63: Programmable Thermostat | N63: =O63*3412 ->  | O63: =IFERROR(D63*VLOOKUP(C63,ProgramThermostat_Savings_lookup,6,FALSE)*B63,"") ->  | P63: kWh/unit | Q63: n/a | R63: n/a | S63: ='Incremental Cost'!B94 -> 100 | T63: $/unit | U63: =B63 -> 0 | V63: =IF((U63*S63)>5000,5000,(U63*S63)) -> 0 | W63: =IFERROR($V$63*($N$63/SUM($N$63:$N$64))/($O$63*Lookups!$M$3),"") ->  | X63: 0 | Y63: =IFERROR(($V$63+$X$63)*($N$63/SUM($N$63:$N$64))/($O$63*Lookups!$M$3),"") ->  | Z63: • Rebate offered for elgible programmable thermostats replacing manual thermostats only.
N64: =O64*10*100066 ->  | O64: =IFERROR(D63*VLOOKUP(C63,ProgramThermostat_Savings_lookup,7,FALSE)*B63/10,"") ->  | P64: dekatherms/ unit | W64: =IFERROR($V$63*($N$64/SUM($N$63:$N$64))/(($O$64*10)*Lookups!$M$4),"") ->  | Y64: =IFERROR(($V$63+$X$63)*($N$64/SUM($N$63:$N$64))/(($O$64*10)*Lookups!$M$4),"") -> 
Q65: *Estimated Rebate Total ($5,000 cap per parcel for HVAC projects) | V65: =IF(SUM(V15:V19,V21:V24,V27:V52,V55:V55,V57:V60,V63)>T8,T8,SUM(V15:V19,V21:V24,V27:V52,V55:V55,V57:V60,V63)) -> 0
A66: * This tool is for estimating purposes only and does not serve as a guarantee of a rebate or of final rebate amounts. Rebates will be issued on a first-come, first-served basis until all funding committed. Rebates are contingent on applicants and equipment meeting eligibility requirements. Visit www.PACEYES.com for full terms and conditions.

Sheet Lookups (hidden)
A1: Building Type Lookup values
A2: Building Type | B2: Cooling EFLH | C2: Heating EFLH | D2: Fan Operating Hours | E2: EnergySmart Operating Hours | H2: Degredation Efficiency: | L2: Greenhouse Gas Energy Conversion | Q2: Install Year | R2: Date Range
A3: Office | B3: 868 | C3: 369 | D3: 3706 | E3: 3435 | H3: From "Building American Performance Analysis Procedures for Existing Homes". NREL. May 2006 pgs. 6-14 | L3: kWh to ton of GHG | M3: 0.0008 | Q3: 1920 | R3: Pre 1980
A4: Large Retail | B4: 1214 | C4: 544 | D4: 5000 | E4: 4912 | H4: http://www.nrel.gov/buildings/pdfs/38238.pdf | L4: therm to ton of GHG | M4: 0.00532 | Q4: 1921 | R4: Pre 1980
A5: Small Retail | B5: 860 | C5: 287 | D5: 3242 | E5: 3068 | H5: Boiler Degradation Equation: | I5: (Base AFUE)*(1-M)^age | Q5: 1922 | R5: Pre 1980
A6: Grocery | B6: 1186 | C6: 482 | D6: 4777 | E6: 4612 | H6: DX Degradation Equation: | I6: (Base Eff)*(1-M)^age | Q6: 1923 | R6: Pre 1980
A7: Restaurant | B7: 1094 | C7: 420 | D7: 4182 | E7: 4156 | H7: Base AFUE: Typical Efficiency of Pre-Retrofit | I7: See Table 5 | Q7: 1924 | R7: Pre 1980
A8: Lodging | B8: 801 | C8: 235 | D8: 2835 | E8: 2697 | H8: Base EFF: Pre-retrofit equipment | I8: Original SEER/EER Value | Q8: 1925 | R8: Pre 1980
A9: Healthcare | B9: 856 | C9: 355 | D9: 3555 | E9: 3392 | H9: M: Maintanace Factor (DX) | I9: 0.01 | Q9: 1926 | R9: Pre 1980
A10: Education | B10: 307 | C10: 253 | D10: 2264 | E10: 2080 | H10: M: Maintanace Factor (Furnace/Boiler) | I10: =AVERAGE(J12:J16) -> 0.005 | Q10: 1927 | R10: Pre 1980
A11: Public Service | B11: 868 | C11: 369 | D11: 3706 | E11: =E3 -> 3435 | H11: Table 5: Space Heating Equipment | I11: Base AFUE | J11: Maintanence Factor | Q11: 1928 | R11: Pre 1980
A12: Churches | B12: 790 | C12: 286 | D12: 3111 | E12: 2912 | H12: Condensing Gas Furnace | I12: 90 | J12: 0.005 | Q12: 1929 | R12: Pre 1980
A13: Warehouse | B13: 1314 | C13: 709 | D13: 5959 | E13: 5913 | H13: Gas Furnace, direct vent | I13: 80 | J13: 0.005 | Q13: 1930 | R13: Pre 1980
A14: Other Commercial Buildings | B14: 660 | C14: 211 | D14: 2658 | E14: 2278 | H14: Gas Furnace, natural draft | I14: 78 | J14: 0.005 | Q14: 1931 | R14: Pre 1980
A15: Heavy Industrial | B15: 1336 | C15: 689 | D15: 5957 | E15: 5913 | H15: Gas hot water boiler, natural draft | I15: 80 | J15: 0.005 | Q15: 1932 | R15: Pre 1980
A16: Light Industrial | B16: 817 | C16: 307 | D16: 3217 | E16: 3068 | H16: Condensing gas boiler | I16: 90 | J16: 0.005 | Q16: 1933 | R16: Pre 1980
A17: Multifamily | B17: 1135 | C17: 498 | D17: 4535 | E17: 4532 | Q17: 1934 | R17: Pre 1980
E18: Diversity factors and operating hours based on an Xcel Energy study of lighting system operating hours for several facility types (Barakat & Chamberlin 1994) | Q18: 1935 | R18: Pre 1980
E19: Interactive Savings from LBNL-39795: Interactions Between Lighting and Space Conditioning Energy Use - Sezgen & Koomey 4/98 | Q19: 1936 | R19: Pre 1980
Q20: 1937 | R20: Pre 1980
A21: Assummed Efficiencies Lookup | Q21: 1938 | R21: Pre 1980
E22: <5.4 tons | Q22: 1939 | R22: Pre 1980
A23: Boiler Efficiency | D23: Furnace Efficiency | E23: Roof Top Units | Q23: 1940 | R23: Pre 1980
A24: Equipment Age | B24: Efficiency % (< 300,000 Btu/h) | C24: Efficiency % ( >300,000 Btu/h) | D24: Efficiency % (All Sizes) | E24: Unit Size (Cooling Capacity) | F24: Minimum Performace (SEER) | G24: Unit Size (Cooling Capacity) | H24: Minimum Performace (EER) | I24: Unit Size (Cooling Capacity) | J24: Minimum Performace (EER) | K24: Unit Size (Cooling Capacity) | L24: Minimum Performace (EER) | M24: Unit Size (Cooling Capacity) | N24: Minimum Performace (EER) | Q24: 1941 | R24: Pre 1980
A25: Pre 1980 | B25: 0.68 | C25: 0.72 | D25: 0.78 | E25: <65,000 Btu/h | F25: 10 | G25: >65,000 Btu/h and <135,000 Btu/hr | H25: 8.3 | I25: >135,000 Btu/h and <240,000 Btu/hr | J25: 8.2 | K25: <760,000 Btu/hr | L25: 8.2 | M25: >760,000 Btu/hr | N25: 8 | Q25: 1942 | R25: Pre 1980
A26: 1980-1988 | B26: 0.68 | C26: 0.72 | D26: 0.78 | E26: <65,000 Btu/h | F26: 10 | G26: >65,000 Btu/h and <135,000 Btu/hr | H26: 8.3 | I26: >135,000 Btu/h and <240,000 Btu/hr | J26: 8.2 | K26: <760,000 Btu/hr | L26: 8.2 | M26: >760,000 Btu/hr | N26: 8 | Q26: 1943 | R26: Pre 1980
A27: 1989-2000 | B27: 0.8 | C27: 0.8 | D27: 0.78 | E27: <65,000 Btu/h | F27: 10 | G27: >65,000 Btu/h and <135,000 Btu/hr | H27: 8.3 | I27: >135,000 Btu/h and <240,000 Btu/hr | J27: 8.5 | K27: <760,000 Btu/hr | L27: 8.5 | M27: >760,000 Btu/hr | N27: 8.2 | Q27: 1944 | R27: Pre 1980
A28: 2001-2005 | B28: 0.8 | C28: 0.8 | D28: 0.78 | E28: <65,000 Btu/h | F28: 10 | G28: >65,000 Btu/h and <135,000 Btu/hr | H28: 10.3 | I28: >135,000 Btu/h and <240,000 Btu/hr | J28: 9.7 | K28: >240,000 Btu/hr and <760,000 Btu/hr | L28: 9.5 | M28: >760,000 Btu/hr | N28: 9.2 | Q28: 1945 | R28: Pre 1980
A29: 2006-2010 | B29: 0.8 | C29: 0.8 | D29: 0.78 | E29: <65,000 Btu/h | F29: 13 | G29: >65,000 Btu/h and <135,000 Btu/hr | H29: 10.3 | I29: >135,000 Btu/h and <240,000 Btu/hr | J29: 9.7 | K29: >240,000 Btu/hr and <760,000 Btu/hr | L29: 9.5 | M29: >760,000 Btu/hr | N29: 9.3 | Q29: 1946 | R29: Pre 1980
A30: 2011 and after | B30: 0.8 | C30: 0.8 | D30: 0.78 | E30: <65,000 Btu/h | F30: 13 | G30: >65,000 Btu/h and <135,000 Btu/hr | H30: 11 | I30: >135,000 Btu/h and <240,000 Btu/hr | J30: 10.8 | K30: >240,000 Btu/hr and <760,000 Btu/hr | L30: 9.5 | M30: >760,000 Btu/hr | N30: 9.5 | Q30: 1947 | R30: Pre 1980
A31: Sources: ASHRAE 90.1 (1989, 1999, 2007, 2010) | Q31: 1948 | R31: Pre 1980
E32: 5 | G32: 11 | I32: =240/12 -> 20 | Q32: 1949 | R32: Pre 1980
Q33: 1950 | R33: Pre 1980
A34: Savings Algorithms: | Q34: 1951 | R34: Pre 1980
Q35: 1952 | R35: Pre 1980
A36: Boiler/Furnace: | E36: Source: Xcel Energy CO DSM-2015-2016 Pg. 401 | Q36: 1953 | R36: Pre 1980
A37: Btu/Hr Upgrade: | B37: Btu/hr_Existing x EFFb/EFFh | Q37: 1954 | R37: Pre 1980
A38: Btu/Hr Baseline: | B38: Btu/hr_new x EFFh/EFFb | Q38: 1955 | R38: Pre 1980
A39: New Boiler Savings (Dth): | B39: (Btu/hr_base - Btu/hr_new) x hrs/1,000,000 | Q39: 1956 | R39: Pre 1980
A40: Furnace Savings (Dth): | B40: Alt x ((Btu/hr_new x EFFh/EFFb) - Btu/hr_new) x hrs/1,000,000 | Q40: 1957 | R40: Pre 1980
Q41: 1958 | R41: Pre 1980
A42: Air Conditioning (RTU, Condensing Units, Split Systems): | E42: Source: Xcel Energy CO DSM-2015-2016 Pg. 401 | Q42: 1959 | R42: Pre 1980
A43: Gross Annual kWh Saved | B43: Size x EFLH x (1/SEER_standard - 1/SEER_Eff) | E43: Economizer SEER Factor | Q43: 1960 | R43: Pre 1980
A44: Gross kW Saved | B44: Size x (1/EER_Standard - 1/EER_EFF | E44: 1 | Q44: 1961 | R44: Pre 1980
Q45: 1962 | R45: Pre 1980
A46: VFDs | E46: Source: Xcel Energy CO DSM-2015-2016 Pg. 401 | Q46: 1963 | R46: Pre 1980
A47: Gross Annual kWh Savings per Unit VFD | B47: HP x LF_FanDrive x Conversion x (1/std_eff) x Hrs x %_Savings_Drives x Refrigeration_Factor | Q47: 1964 | R47: Pre 1980
A48: Gross Annual kW Savings per unit VFD | B48: HP x LF_FanDrive x Conversion x (1/std_eff) x %_Savings_Drives x Refrigeration_Factor | Q48: 1965 | R48: Pre 1980
Q49: 1966 | R49: Pre 1980
A50: Variables | Q50: 1967 | R50: Pre 1980
A51: Hrs | B51: See (Table 2.1) | Q51: 1968 | R51: Pre 1980
A52: LF_Fan Drive | B52: 0.65 | Q52: 1969 | R52: Pre 1980
A53: HP | B53: Customer Input | Q53: 1970 | R53: Pre 1980
A54: Std_eff | B54: See (Table 2.2) | Q54: 1971 | R54: Pre 1980
A55: %_Savings_Drives | B55: 0.33 | Q55: 1972 | R55: Pre 1980
A56: Refrigeration_Factor | B56: =1+(1/B57) -> 1.304642857 | C56: =1+1/COP | Q56: 1973 | R56: Pre 1980
A57: COP | B57: =11.2/3.412 -> 3.282532239 | C57: (for assumed average EER value of 11.2) | Q57: 1974 | R57: Pre 1980
A58: Conversion | B58: 0.746 | Q58: 1975 | R58: Pre 1980
Q59: 1976 | R59: Pre 1980
Q60: 1977 | R60: Pre 1980
A61: Evap Cooler Algorithm | E61: Source: Xcel Energy CO DSM-2015-2016 Pg. 401 | Q61: 1978 | R61: Pre 1980
Q62: 1979 | R62: Pre 1980
A63: 13 SEER 3 Ton Energy | B63: =Size x EFLH x (1/SEER_standard) | D63: Energy Use of Existing Unit | G63: Base DX Capacity (tons) | H63: Evap Cooler Motor HP | I63: Base DX Efficiency | Q63: 1980 | R63: 1980-1988
A64: Evap Cooler Energy | B64: =Motor HP x 0.746 x Load Factor / Mottor Eff x OpHr | D64: Energy Use of Evap Cooler | G64: 1 | H64: =(0.3109*G64)-0.2055 -> 0.1054 | I64: =$F$30 -> 13 | J64: Source: Xcel Energy CO DSM-2015-2016 Pg. 401 | Q64: 1981 | R64: 1980-1988
G65: 2 | H65: =(0.3109*G65)-0.2055 -> 0.4163 | I65: =$F$30 -> 13 | J65: Table 2.2 to Table 2.4: NEMA Premium Effi (1200/1800/3600 RPM) | Q65: 1982 | R65: 1980-1988
D66: Evap Cooler | G66: 3 | H66: =(0.3109*G66)-0.2055 -> 0.7272 | I66: 13 | J66: Measure Type | K66: HP | L66: Motor Eff | M66: Boulder Rebate | N66: Xcel Rebate | Q66: 1983 | R66: 1980-1988
A67: EFLH Front Range: | B67: varies | D67: CFM | E67: HP | F67: Equiv Tons Clg | G67: 4 | H67: =(0.3109*G67)-0.2055 -> 1.0381 | I67: 13 | J67: 1 HP 1200 RPM | K67: 1 | L67: 0.825 | M67: ='Incremental Cost'!$E$55 -> 613 | N67: ='Incremental Cost'!$C$55 -> 600 | Q67: 1984 | R67: 1980-1988
A68: Motor HP | B68: varies | D68: 3600 | E68: 0.52 | F68: 3 | G68: 5 | H68: =(0.3109*G68)-0.2055 -> 1.349 | I68: 13 | J68: 1.5 HP 1200 RPM | K68: 1.5 | L68: 0.865 | M68: ='Incremental Cost'!$E$55 -> 613 | N68: ='Incremental Cost'!$C$55 -> 600 | Q68: 1985 | R68: 1980-1988
A69: HP to kW | B69: 0.746 | D69: 6500 | E69: 1.528 | F69: 5.4 | G69: 6 | H69: =(0.3109*G69)-0.2055 -> 1.6599 | I69: =$G$32/0.9 -> 12.22222222 | J69: 2 HP 1200 RPM | K69: 2 | L69: 0.875 | M69: ='Incremental Cost'!$E$55 -> 613 | N69: ='Incremental Cost'!$C$55 -> 600 | Q69: 1986 | R69: 1980-1988
A70: Load Factor | B70: 0.8 | D70: 8924.25 | E70: 2.5 | F70: 7.4 | G70: 7 | H70: 1.9708 | I70: =$G$32/0.9 -> 12.22222222 | J70: 3 HP 1200 RPM | K70: 3 | L70: 0.885 | M70: ='Incremental Cost'!$E$55 -> 613 | N70: ='Incremental Cost'!$C$55 -> 600 | Q70: 1987 | R70: 1980-1988
A71: Motor Efficiency | B71: 0.8 | D71: 10494.75 | E71: 2.5 | F71: 8.7 | G71: 8 | H71: 2.2817 | I71: 12.22222222 | J71: 5 HP 1200 RPM | K71: 5 | L71: 0.895 | M71: ='Incremental Cost'!$E$56 -> 413 | N71: ='Incremental Cost'!$C$56 -> 900 | Q71: 1988 | R71: 1980-1988
A72: CF_AC | B72: 0.7 | D72: 13234.5 | E72: 3 | F72: 11 | G72: 9 | H72: 2.5926 | I72: 12.22222222 | J72: 7.5 HP 1200 RPM | K72: 7.5 | L72: 0.902 | M72: ='Incremental Cost'!$E$57 -> 445 | N72: ='Incremental Cost'!$C$57 -> 1130 | Q72: 1989 | R72: 1989-2000
A73: TDLF | B73: 0.077 | E73: y=0.3109x-0.2055 | G73: 10 | H73: 2.9035 | I73: 12.22222222 | J73: 10 HP 1200 RPM | K73: 10 | L73: 0.917 | M73: ='Incremental Cost'!$E$58 -> 400 | N73: ='Incremental Cost'!$C$58 -> 1350 | Q73: 1990 | R73: 1989-2000
A74: NTG Tier 1 | B74: 0.7 | G74: 11 | H74: 3.2144 | I74: 12.22222222 | J74: 15 HP 1200 RPM | K74: 15 | L74: 0.917 | M74: ='Incremental Cost'!$E$59 -> 463 | N74: ='Incremental Cost'!$C$59 -> 1800 | Q74: 1991 | R74: 1989-2000
A75: NTG Tier 2 | B75: 0.7 | G75: 12 | H75: 3.5253 | I75: =$J$30/0.9 -> 12 | J75: 20 HP 1200 RPM | K75: 20 | L75: 0.924 | M75: ='Incremental Cost'!$E$60 -> 238 | N75: ='Incremental Cost'!$C$60 -> 2300 | Q75: 1992 | R75: 1989-2000
G76: 13 | H76: 3.8362 | I76: =$J$30/0.9 -> 12 | J76: 25 HP 1200 RPM | K76: 25 | L76: 0.93 | M76: ='Incremental Cost'!$E$61 -> 450 | N76: ='Incremental Cost'!$C$61 -> 2750 | Q76: 1993 | R76: 1989-2000
A77: Programmable Thermostats | E77: Source: Nexant eQuest Model runs | J77: 30 HP 1200 RPM | K77: 30 | L77: 0.936 | M77: ='Incremental Cost'!$E$62 -> 563 | N77: ='Incremental Cost'!$C$62 -> 3200 | Q77: 1994 | R77: 1989-2000
J78: 40 HP 1200 RPM | K78: 40 | L78: 0.941 | M78: ='Incremental Cost'!$E$63 -> 325 | N78: ='Incremental Cost'!$C$63 -> 4000 | Q78: 1995 | R78: 1989-2000
B79: Savings over Occassional Manual Thermostat Setback | D79: Savings over No Manual Thermostat Setback | F79: Weighted Average Savings | J79: 50 HP 1200 RPM | K79: 50 | L79: 0.941 | M79: ='Incremental Cost'!$E$64 -> 450 | N79: ='Incremental Cost'!$C$64 -> 4900 | Q79: 1996 | R79: 1989-2000
A80: Building Type | B80: kWh/SF Savings | C80: Therm/SF Savings | D80: kWh/SF Savings | E80: Therm/SF Savings | F80: kWh/SF Savings | G80: Therm/SF Savings | J80: 60 HP 1200 RPM | K80: 60 | L80: 0.941 | M80: ='Incremental Cost'!$E$65 -> 950 | N80: ='Incremental Cost'!$C$65 -> 5600 | Q80: 1997 | R80: 1989-2000
A81: Office | B81: =$B$87*(B3/$B$9) -> 0.6468087227 | C81: =$C$87*(C3/$C$9) -> 0.01829408451 | D81: =$D$87*(B3/$B$9) -> 2.350224922 | E81: =$E$87*(C3/$C$9) -> 0.07102816901 | F81: =(0.25*B81+0.75*D81) -> 1.924370872 | G81: =(0.25*C81+0.75*E81) -> 0.05784464789 | J81: 75 HP 1200 RPM | K81: 75 | L81: 0.945 | M81: ='Incremental Cost'!$E$66 -> 750 | N81: ='Incremental Cost'!$C$66 -> 6600 | Q81: 1998 | R81: 1989-2000
A82: Large Retail | B82: =$B$87*(B4/$B$9) -> 0.9046380062 | C82: 0.02697014085 | D82: 3.287065732 | E82: 0.104713615 | F82: =(0.25*B82+0.75*D82) -> 2.691458801 | G82: 0.08527774648 | J82: 100 HP 1200 RPM | K82: 100 | L82: 0.95 | M82: ='Incremental Cost'!$E$67 -> 750 | N82: ='Incremental Cost'!$C$67 -> 7700 | Q82: 1999 | R82: 1989-2000
A83: Small Retail | B83: 0.640847352 | C83: 0.01422873239 | D83: 2.328563863 | E83: 0.05524413146 | F83: 1.906634735 | G83: 0.04499028169 | J83: 125 HP 1200 RPM | K83: 125 | L83: 0.95 | M83: ='Incremental Cost'!$E$67 -> 750 | N83: ='Incremental Cost'!$C$67 -> 7700 | Q83: 2000 | R83: 1989-2000
A84: Grocery | B84: 0.8837732087 | C84: 0.02389633803 | D84: 3.211252025 | E84: 0.09277934272 | F84: 2.629382321 | G84: 0.07555859155 | J84: 150 HP 1200 RPM | K84: 150 | L84: 0.954 | M84: ='Incremental Cost'!$E$67 -> 750 | N84: ='Incremental Cost'!$C$67 -> 7700 | Q84: 2001 | R84: 2001-2005
A85: Restaurant | B85: 0.8152174455 | C85: 0.02082253521 | D85: 2.962149844 | E85: 0.08084507042 | F85: 2.425416745 | G85: 0.06583943662 | J85: 200 HP 1200 RPM | K85: 200 | L85: 0.954 | M85: ='Incremental Cost'!$E$67 -> 750 | N85: ='Incremental Cost'!$C$67 -> 7700 | Q85: 2002 | R85: 2001-2005
A86: Lodging | B86: 0.596882243 | C86: 0.01165070423 | D86: 2.168813551 | E86: 0.04523474178 | F86: 1.775830724 | G86: 0.03683873239 | J86: 1 HP 1800 RPM | K86: 1 | L86: 0.855 | M86: ='Incremental Cost'!$E$55 -> 613 | N86: ='Incremental Cost'!$C$55 -> 600 | Q86: 2003 | R86: 2001-2005
A87: Healthcare | B87: 0.6378666667 | C87: 0.0176 | D87: 2.317733333 | E87: 0.06833333333 | F87: 1.897766667 | G87: 0.05565 | J87: 1.5 HP 1800 RPM | K87: 1.5 | L87: 0.865 | M87: ='Incremental Cost'!$E$55 -> 613 | N87: ='Incremental Cost'!$C$55 -> 600 | Q87: 2004 | R87: 2001-2005
A88: Education | B88: =$B$87*(B10/$B$9) -> 0.2287676012 | C88: =$C$87*(C10/$C$9) -> 0.01254309859 | D88: =$D$87*(B10/$B$9) -> 0.8312431464 | E88: =$E$87*(C10/$C$9) -> 0.04869953052 | F88: 0.6806242601 | G88: 0.03966042254 | J88: 2 HP 1800 RPM | K88: 2 | L88: 0.865 | M88: ='Incremental Cost'!$E$55 -> 613 | N88: ='Incremental Cost'!$C$55 -> 600 | Q88: 2005 | R88: 2001-2005
A89: Public Service | B89: 0.6468087227 | C89: 0.01829408451 | D89: 2.350224922 | E89: 0.07102816901 | F89: 1.924370872 | G89: 0.05784464789 | J89: 3 HP 1800 RPM | K89: 3 | L89: 0.895 | M89: ='Incremental Cost'!$E$55 -> 613 | N89: ='Incremental Cost'!$C$55 -> 600 | Q89: 2006 | R89: 2006-2010
A90: Churches | B90: 0.5886853583 | C90: 0.01417915493 | D90: 2.139029595 | E90: 0.05505164319 | F90: 1.751443536 | G90: 0.04483352113 | J90: 5 HP 1800 RPM | K90: 5 | L90: 0.895 | M90: ='Incremental Cost'!$E$56 -> 413 | N90: ='Incremental Cost'!$C$56 -> 900 | Q90: 2007 | R90: 2006-2010
A91: Warehouse | B91: 0.9791551402 | C91: 0.03515042254 | D91: 3.557828972 | E91: 0.1364741784 | F91: 2.913160514 | G91: 0.1111432394 | J91: 7.5 HP 1800 RPM | K91: 7.5 | L91: 0.91 | M91: ='Incremental Cost'!$E$57 -> 445 | N91: ='Incremental Cost'!$C$57 -> 1130 | Q91: 2008 | R91: 2006-2010
A92: Other Commercial Buildings | B92: 0.4918130841 | C92: 0.01046084507 | D92: 1.787037383 | E92: 0.04061502347 | F92: 1.463231308 | G92: 0.03307647887 | J92: 10 HP 1800 RPM | K92: 10 | L92: 0.917 | M92: ='Incremental Cost'!$E$58 -> 400 | N92: ='Incremental Cost'!$C$58 -> 1350 | Q92: 2009 | R92: 2006-2010
A93: Heavy Industrial | B93: 0.9955489097 | C93: 0.03415887324 | D93: 3.617396885 | E93: 0.1326244131 | F93: 2.961934891 | G93: 0.1080080282 | J93: 15 HP 1800 RPM | K93: 15 | L93: 0.93 | M93: ='Incremental Cost'!$E$59 -> 463 | N93: ='Incremental Cost'!$C$59 -> 1800 | Q93: 2010 | R93: 2006-2010
A94: Light Industrial | B94: 0.6088049844 | C94: 0.01522028169 | D94: 2.21213567 | E94: 0.05909389671 | F94: 1.811302998 | G94: 0.04812549296 | J94: 20 HP 1800 RPM | K94: 20 | L94: 0.93 | M94: ='Incremental Cost'!$E$60 -> 238 | N94: ='Incremental Cost'!$C$60 -> 2300 | Q94: 2011 | R94: 2011 and after
A95: Multifamily | B95: 0.8457694704 | C95: 0.02468957746 | D95: 3.073162773 | E95: 0.09585915493 | F95: =(0.25*B95+0.75*D95) -> 2.516314447 | G95: =(0.25*C95+0.75*E95) -> 0.07806676056 | J95: 25 HP 1800 RPM | K95: 25 | L95: 0.936 | M95: ='Incremental Cost'!$E$61 -> 450 | N95: ='Incremental Cost'!$C$61 -> 2750 | Q95: 2012 | R95: 2011 and after
J96: 30 HP 1800 RPM | K96: 30 | L96: 0.941 | M96: ='Incremental Cost'!$E$62 -> 563 | N96: ='Incremental Cost'!$C$62 -> 3200
A97: Economizers | E97: Source: Nexant eQuest Model runs | J97: 40 HP 1800 RPM | K97: 40 | L97: 0.941 | M97: ='Incremental Cost'!$E$63 -> 325 | N97: ='Incremental Cost'!$C$63 -> 4000
A98: Building Type | B98: Economizer Savings (kWh/ton): | J98: 50 HP 1800 RPM | K98: 50 | L98: 0.945 | M98: ='Incremental Cost'!$E$64 -> 450 | N98: ='Incremental Cost'!$C$64 -> 4900 | Q98: 2013 | R98: 2011 and after
A99: Office | B99: =(B3/$B$13)*$B$109 -> 237.0595637 | J99: 60 HP 1800 RPM | K99: 60 | L99: 0.95 | M99: ='Incremental Cost'!$E$65 -> 950 | N99: ='Incremental Cost'!$C$65 -> 5600 | Q99: 2014 | R99: 2011 and after
A100: Large Retail | B100: 331.555657 | J100: 75 HP 1800 RPM | K100: 75 | L100: 0.95 | M100: ='Incremental Cost'!$E$66 -> 750 | N100: ='Incremental Cost'!$C$66 -> 6600 | Q100: 2015 | R100: 2011 and after
A101: Small Retail | B101: 234.8746829 | J101: 100 HP 1800 RPM | K101: 100 | L101: 0.954 | M101: ='Incremental Cost'!$E$67 -> 750 | N101: ='Incremental Cost'!$C$67 -> 7700 | Q101: 2016 | R101: 2011 and after
A102: Grocery | B102: 323.9085743 | J102: 125 HP 1800 RPM | K102: 125 | L102: 0.954 | M102: ='Incremental Cost'!$E$67 -> 750 | N102: ='Incremental Cost'!$C$67 -> 7700
A103: Restaurant | B103: 298.7824455 | J103: 150 HP 1800 RPM | K103: 150 | L103: 0.958 | M103: ='Incremental Cost'!$E$67 -> 750 | N103: ='Incremental Cost'!$C$67 -> 7700
A104: Lodging | B104: 218.7611872 | J104: 200 HP 1800 RPM | K104: 200 | L104: 0.958 | M104: ='Incremental Cost'!$E$67 -> 750 | N104: ='Incremental Cost'!$C$67 -> 7700
A105: Healthcare | B105: 233.7822425 | J105: 1 HP 3600 RPM | K105: 1 | L105: 0.77 | M105: ='Incremental Cost'!$E$55 -> 613 | N105: ='Incremental Cost'!$C$55 -> 600
A106: Education | B106: 83.84479959 | J106: 1.5 HP 36000 RPM | K106: 1.5 | L106: 0.84 | M106: ='Incremental Cost'!$E$55 -> 613 | N106: ='Incremental Cost'!$C$55 -> 600
A107: Public Service | B107: 237.0595637 | J107: 2 HP 3600 RPM | K107: 2 | L107: 0.855 | M107: ='Incremental Cost'!$E$55 -> 613 | N107: ='Incremental Cost'!$C$55 -> 600
A108: Churches | B108: =(B12/$B$13)*$B$109 -> 215.7569762 | J108: 3 HP 3600 RPM | K108: 3 | L108: 0.855 | M108: ='Incremental Cost'!$E$55 -> 613 | N108: ='Incremental Cost'!$C$55 -> 600
A109: Warehouse | B109: =10766/30 -> 358.8666667 | J109: 5 HP 3600 RPM | K109: 5 | L109: 0.865 | M109: ='Incremental Cost'!$E$56 -> 413 | N109: ='Incremental Cost'!$C$56 -> 900
A110: Other Commercial Buildings | B110: =(B14/$B$13)*$B$109 -> 180.2526636 | J110: 7.5 HP 3600 RPM | K110: 7.5 | L110: 0.885 | M110: ='Incremental Cost'!$E$57 -> 445 | N110: ='Incremental Cost'!$C$57 -> 1130
A111: Heavy Industrial | B111: =(B15/$B$13)*$B$109 -> 364.8750888 | J111: 10 HP 3600 RPM | K111: 10 | L111: 0.895 | M111: ='Incremental Cost'!$E$58 -> 400 | N111: ='Incremental Cost'!$C$58 -> 1350
A112: Light Industrial | B112: =(B16/$B$13)*$B$109 -> 223.1309488 | J112: 15 HP 3600 RPM | K112: 15 | L112: 0.902 | M112: ='Incremental Cost'!$E$59 -> 463 | N112: ='Incremental Cost'!$C$59 -> 1800
A113: Multifamily | B113: =(B17/$B$13)*$B$109 -> 309.9799594 | J113: 20 HP 3600 RPM | K113: 20 | L113: 0.91 | M113: ='Incremental Cost'!$E$60 -> 238 | N113: ='Incremental Cost'!$C$60 -> 2300
J114: 25 HP 3600 RPM | K114: 25 | L114: 0.917 | M114: ='Incremental Cost'!$E$61 -> 450 | N114: ='Incremental Cost'!$C$61 -> 2750
J115: 30 HP 3600 RPM | K115: 30 | L115: 0.917 | M115: ='Incremental Cost'!$E$62 -> 563 | N115: ='Incremental Cost'!$C$62 -> 3200
J116: 40 HP 3600 RPM | K116: 40 | L116: 0.924 | M116: ='Incremental Cost'!$E$63 -> 325 | N116: ='Incremental Cost'!$C$63 -> 4000
J117: 50 HP 3600 RPM | K117: 50 | L117: 0.93 | M117: ='Incremental Cost'!$E$64 -> 450 | N117: ='Incremental Cost'!$C$64 -> 4900
J118: 60 HP 3600 RPM | K118: 60 | L118: 0.936 | M118: ='Incremental Cost'!$E$65 -> 950 | N118: ='Incremental Cost'!$C$65 -> 5600
J119: 75 HP 3600 RPM | K119: 75 | L119: 0.936 | M119: ='Incremental Cost'!$E$66 -> 750 | N119: ='Incremental Cost'!$C$66 -> 6600
J120: 100 HP 3600 RPM | K120: 100 | L120: 0.936 | M120: ='Incremental Cost'!$E$67 -> 750 | N120: ='Incremental Cost'!$C$67 -> 7700
J121: 125 HP 3600 RPM | K121: 125 | L121: 0.941 | M121: ='Incremental Cost'!$E$67 -> 750 | N121: ='Incremental Cost'!$C$67 -> 7700
J122: 150 HP 3600 RPM | K122: 150 | L122: 0.941 | M122: ='Incremental Cost'!$E$67 -> 750 | N122: ='Incremental Cost'!$C$67 -> 7700
J123: 200 HP 3600 RPM | K123: 200 | L123: 0.95 | M123: ='Incremental Cost'!$E$67 -> 750 | N123: ='Incremental Cost'!$C$67 -> 7700

Sheet Incremental Cost (hidden)
A1: Table: Hot Water Boiler Cost | K1: http://www.xcelenergy.com/Energy_Solutions/Business_Solutions/Rebates_&_Energy_Savings/Heating_Efficiency
D2: Non-Condensing | H2: Condensing | J2: Incremental ($/kbtu) | K2: Xcel Rebate ($/kbtu) | L2: Boulder Rebate ($/kbtu) - Replace on Burnout | M2: Boulder Rebate ($/kbtu) - Early Replacement
A3: Boiler Nameplate Capacity | B3: kBTU | D3: Baseline - Cost | E3: Baseline Eff. (EFFb) | F3: High Efficient Non Condensing - Cost | G3: High Efficient Non Condensing - Efficiency (EFFh) | H3: High Efficient Condensing - Cost | I3: High Efficient Condensing - Efficiency Cost/kbtu | J3: Baseline to High Efficient - Condensing | P3: Bonus Rebate Scaling Factor | Q3: Bonus Rebate ($/kbtu) | R3: Min. Efficiency Savings (dekatherms) | S3: Actual Efficiency Savings (dekatherms) | T3: $/GHG Saved (Xcel + ES)
A4: 175,000 Btu/hr | B4: 175 | D4: 3000 | E4: 0.8 | F4: 3500 | G4: 0.85 | H4: 4600 | I4: =H4/B4 -> 26.28571429 | J4: =(H4-D4)/B4 -> 9.142857143 | O4: Boiler, minimum 92% AFUE | P4: 1 | Q4: =IFERROR((((S4-R4)*10)*Lookups!$M$4*T4)/'Non-Lighting Rebate Estimator'!$U15*P4,0) -> 0 | R4: =IFERROR((((('Non-Lighting Rebate Estimator'!$D15*1000)*92%/(IF('Non-Lighting Rebate Estimator'!$H15="yes",'Non-Lighting Rebate Estimator'!$J15*(1-Lookups!$I$10)^(2016-'Non-Lighting Rebate Estimator'!$L15),Lookups!$B$30)))-('Non-Lighting Rebate Estimator'!$D15*1000))*'Non-Lighting Rebate Estimator'!$N15/1000000)*'Non-Lighting Rebate Estimator'!$B15,"") ->  | S4: =IFERROR((((('Non-Lighting Rebate Estimator'!$D15*1000)*'Non-Lighting Rebate Estimator'!$F15/(IF('Non-Lighting Rebate Estimator'!$H15="yes",'Non-Lighting Rebate Estimator'!$J15*(1-Lookups!$I$10)^(2016-'Non-Lighting Rebate Estimator'!$L15),Lookups!$B$30)))-('Non-Lighting Rebate Estimator'!$D15*1000))*'Non-Lighting Rebate Estimator'!$N15/1000000)*'Non-Lighting Rebate Estimator'!$B15,"") ->  | T4: =(IF('Non-Lighting Rebate Estimator'!$H15="yes",'Incremental Cost'!$M$11*'Non-Lighting Rebate Estimator'!$U15,'Incremental Cost'!$L$11*'Non-Lighting Rebate Estimator'!$U15)+'Non-Lighting Rebate Estimator'!$X15)/(('Non-Lighting Rebate Estimator'!$O15*10)*Lookups!$M$4) -> 
A5: 500,000 Btu/hr | B5: 500 | D5: 5000 | E5: 0.8 | F5: 9000 | G5: 0.85 | H5: 11200 | I5: =H5/B5 -> 22.4 | J5: 12.4 | O5: Boiler, minimum 92% AFUE | P5: 1 | Q5: =IFERROR((((S5-R5)*10)*Lookups!$M$4*T5)/'Non-Lighting Rebate Estimator'!$U16*P5,0) -> 0 | R5: =IFERROR((((('Non-Lighting Rebate Estimator'!$D16*1000)*92%/(IF('Non-Lighting Rebate Estimator'!$H16="yes",'Non-Lighting Rebate Estimator'!$J16*(1-Lookups!$I$10)^(2016-'Non-Lighting Rebate Estimator'!$L16),Lookups!$B$30)))-('Non-Lighting Rebate Estimator'!$D16*1000))*'Non-Lighting Rebate Estimator'!$N16/1000000)*'Non-Lighting Rebate Estimator'!$B16,"") ->  | S5: =IFERROR((((('Non-Lighting Rebate Estimator'!$D16*1000)*'Non-Lighting Rebate Estimator'!$F16/(IF('Non-Lighting Rebate Estimator'!$H16="yes",'Non-Lighting Rebate Estimator'!$J16*(1-Lookups!$I$10)^(2016-'Non-Lighting Rebate Estimator'!$L16),Lookups!$B$30)))-('Non-Lighting Rebate Estimator'!$D16*1000))*'Non-Lighting Rebate Estimator'!$N16/1000000)*'Non-Lighting Rebate Estimator'!$B16,"") ->  | T5: =(IF('Non-Lighting Rebate Estimator'!$H16="yes",'Incremental Cost'!$M$11*'Non-Lighting Rebate Estimator'!$U16,'Incremental Cost'!$L$11*'Non-Lighting Rebate Estimator'!$U16)+'Non-Lighting Rebate Estimator'!$X16)/(('Non-Lighting Rebate Estimator'!$O16*10)*Lookups!$M$4) -> 
A6: 1,000,000 Btu/hr | B6: 1000 | D6: 7300 | E6: 0.8 | F6: 11700 | G6: 0.85 | H6: 15000 | I6: 15 | J6: 7.7 | O6: Boiler, minimum 92% AFUE | P6: 1 | Q6: =IFERROR((((S6-R6)*10)*Lookups!$M$4*T6)/'Non-Lighting Rebate Estimator'!$U17*P6,0) -> 0 | R6: =IFERROR((((('Non-Lighting Rebate Estimator'!$D17*1000)*92%/(IF('Non-Lighting Rebate Estimator'!$H17="yes",'Non-Lighting Rebate Estimator'!$J17*(1-Lookups!$I$10)^(2016-'Non-Lighting Rebate Estimator'!$L17),Lookups!$B$30)))-('Non-Lighting Rebate Estimator'!$D17*1000))*'Non-Lighting Rebate Estimator'!$N17/1000000)*'Non-Lighting Rebate Estimator'!$B17,"") ->  | S6: =IFERROR((((('Non-Lighting Rebate Estimator'!$D17*1000)*'Non-Lighting Rebate Estimator'!$F17/(IF('Non-Lighting Rebate Estimator'!$H17="yes",'Non-Lighting Rebate Estimator'!$J17*(1-Lookups!$I$10)^(2016-'Non-Lighting Rebate Estimator'!$L17),Lookups!$B$30)))-('Non-Lighting Rebate Estimator'!$D17*1000))*'Non-Lighting Rebate Estimator'!$N17/1000000)*'Non-Lighting Rebate Estimator'!$B17,"") ->  | T6: =(IF('Non-Lighting Rebate Estimator'!$H17="yes",'Incremental Cost'!$M$11*'Non-Lighting Rebate Estimator'!$U17,'Incremental Cost'!$L$11*'Non-Lighting Rebate Estimator'!$U17)+'Non-Lighting Rebate Estimator'!$X17)/(('Non-Lighting Rebate Estimator'!$O17*10)*Lookups!$M$4) -> 
A7: 2,000,000 Btu/hr | B7: 2000 | D7: 12000 | E7: 0.8 | F7: 17000 | G7: 0.85 | H7: 26500 | I7: 13.25 | J7: 7.25 | O7: Boiler, minimum 92% AFUE | P7: 1 | Q7: =IFERROR((((S7-R7)*10)*Lookups!$M$4*T7)/'Non-Lighting Rebate Estimator'!$U18*P7,0) -> 0 | R7: =IFERROR((((('Non-Lighting Rebate Estimator'!$D18*1000)*92%/(IF('Non-Lighting Rebate Estimator'!$H18="yes",'Non-Lighting Rebate Estimator'!$J18*(1-Lookups!$I$10)^(2016-'Non-Lighting Rebate Estimator'!$L18),Lookups!$B$30)))-('Non-Lighting Rebate Estimator'!$D18*1000))*'Non-Lighting Rebate Estimator'!$N18/1000000)*'Non-Lighting Rebate Estimator'!$B18,"") ->  | S7: =IFERROR((((('Non-Lighting Rebate Estimator'!$D18*1000)*'Non-Lighting Rebate Estimator'!$F18/(IF('Non-Lighting Rebate Estimator'!$H18="yes",'Non-Lighting Rebate Estimator'!$J18*(1-Lookups!$I$10)^(2016-'Non-Lighting Rebate Estimator'!$L18),Lookups!$B$30)))-('Non-Lighting Rebate Estimator'!$D18*1000))*'Non-Lighting Rebate Estimator'!$N18/1000000)*'Non-Lighting Rebate Estimator'!$B18,"") ->  | T7: =(IF('Non-Lighting Rebate Estimator'!$H18="yes",'Incremental Cost'!$M$11*'Non-Lighting Rebate Estimator'!$U18,'Incremental Cost'!$L$11*'Non-Lighting Rebate Estimator'!$U18)+'Non-Lighting Rebate Estimator'!$X18)/(('Non-Lighting Rebate Estimator'!$O18*10)*Lookups!$M$4) -> 
A8: 4,000,000 Btu/hr | B8: 4000 | D8: 24000 | E8: 0.8 | F8: 34000 | G8: 0.85 | H8: 53000 | I8: 13.25 | J8: 7.25 | O8: Boiler, minimum 92% AFUE | P8: 1 | Q8: =IFERROR((((S8-R8)*10)*Lookups!$M$4*T8)/'Non-Lighting Rebate Estimator'!$U19*P8,0) -> 0 | R8: =IFERROR((((('Non-Lighting Rebate Estimator'!$D19*1000)*92%/(IF('Non-Lighting Rebate Estimator'!$H19="yes",'Non-Lighting Rebate Estimator'!$J19*(1-Lookups!$I$10)^(2016-'Non-Lighting Rebate Estimator'!$L19),Lookups!$B$30)))-('Non-Lighting Rebate Estimator'!$D19*1000))*'Non-Lighting Rebate Estimator'!$N19/1000000)*'Non-Lighting Rebate Estimator'!$B19,"") ->  | S8: =IFERROR((((('Non-Lighting Rebate Estimator'!$D19*1000)*'Non-Lighting Rebate Estimator'!$F19/(IF('Non-Lighting Rebate Estimator'!$H19="yes",'Non-Lighting Rebate Estimator'!$J19*(1-Lookups!$I$10)^(2016-'Non-Lighting Rebate Estimator'!$L19),Lookups!$B$30)))-('Non-Lighting Rebate Estimator'!$D19*1000))*'Non-Lighting Rebate Estimator'!$N19/1000000)*'Non-Lighting Rebate Estimator'!$B19,"") ->  | T8: =(IF('Non-Lighting Rebate Estimator'!$H19="yes",'Incremental Cost'!$M$11*'Non-Lighting Rebate Estimator'!$U19,'Incremental Cost'!$L$11*'Non-Lighting Rebate Estimator'!$U19)+'Non-Lighting Rebate Estimator'!$X19)/(('Non-Lighting Rebate Estimator'!$O19*10)*Lookups!$M$4) -> 
A9: 6,000,000 Btu/hr | B9: 6000 | D9: 36000 | E9: 0.8 | F9: 51000 | G9: 0.85 | H9: 79500 | I9: 13.25 | J9: 7.25
A10: 8,000,000 Btu/hr | B10: 8000 | D10: 48000 | E10: 0.8 | F10: 68000 | G10: 0.85 | H10: 106000 | I10: 13.25 | J10: 7.25
H11: Average Cost | I11: =AVERAGE(I4:I10) -> 16.66938776 | J11: =AVERAGE(J4:J10) -> 8.320408163 | K11: 3.5 | L11: 2.5 | M11: 3
A13: Table: Commercial Furnace
D14: Furnace Cost | G14: http://www.xcelenergy.com/Energy_Solutions/Business_Solutions/Rebates_&_Energy_Savings/Heating_Efficiency
A15: Btu Input | C15: Full Cost (92% Furnace) | D15: Btu Input | E15: 80% Furnace | F15: Incremental Cost | G15: Xcel Rebate | H15: Boulder Rebate ($/unit) - Replace on Burnout | I15: Boulder Rebate ($/unit) - Early Replacement | L15: Bonus Rebate Scaling Factor | M15: Bonus Rebate ($/unit) | N15: Min. Efficiency Savings (dekatherms) | O15: Actual Efficiency Savings (dekatherms) | P15: $/GHG Saved (Xcel + ES)
A16: 60000 | C16: 804.95 | D16: 60000 | E16: 535 | F16: =C16-E16 -> 269.95 | K16: Natural Gas Furnace <=225 kBTU, minimum 92% AFUE | L16: 1 | M16: =IFERROR(ROUND((($O16-$N16)*10*Lookups!$M$4*$P16/'Non-Lighting Rebate Estimator'!$U21*L16),0),0) -> 0 | N16: =IFERROR((((('Non-Lighting Rebate Estimator'!$D21*1000)*92%/(IF('Non-Lighting Rebate Estimator'!$H21="yes",'Non-Lighting Rebate Estimator'!$J21*(1-Lookups!$I$10)^(2016-'Non-Lighting Rebate Estimator'!$L21),Lookups!$D$30)))-('Non-Lighting Rebate Estimator'!$D21*1000))*'Non-Lighting Rebate Estimator'!$N21/1000000)*'Non-Lighting Rebate Estimator'!$B21,"")*'Non-Lighting Rebate Estimator'!$U21 ->  | O16: =IFERROR((((('Non-Lighting Rebate Estimator'!$D21*1000)*'Non-Lighting Rebate Estimator'!$F21/(IF('Non-Lighting Rebate Estimator'!$H21="yes",'Non-Lighting Rebate Estimator'!$J21*(1-Lookups!$I$10)^(2016-'Non-Lighting Rebate Estimator'!$L21),Lookups!$D$30)))-('Non-Lighting Rebate Estimator'!$D21*1000))*'Non-Lighting Rebate Estimator'!$N21/1000000)*'Non-Lighting Rebate Estimator'!$B21,"")*'Non-Lighting Rebate Estimator'!$U21 ->  | P16: =(IF('Non-Lighting Rebate Estimator'!$H21="yes",'Incremental Cost'!$I$25*'Non-Lighting Rebate Estimator'!U21,'Incremental Cost'!$H$25*'Non-Lighting Rebate Estimator'!U21)+'Non-Lighting Rebate Estimator'!$X21)/(('Non-Lighting Rebate Estimator'!$O21*10)*Lookups!$M$4) -> 
A17: 70000 | C17: 782.26 | D17: 60000 | E17: 535 | F17: =C17-E17 -> 247.26 | K17: Natural Gas Furnace <=225 kBTU, minimum 92% AFUE | L17: 1 | M17: =IFERROR(ROUND((($O17-$N17)*10*Lookups!$M$4*$P17/'Non-Lighting Rebate Estimator'!$U22*L17),0),0) -> 0 | N17: =IFERROR((((('Non-Lighting Rebate Estimator'!$D22*1000)*92%/(IF('Non-Lighting Rebate Estimator'!$H22="yes",'Non-Lighting Rebate Estimator'!$J22*(1-Lookups!$I$10)^(2016-'Non-Lighting Rebate Estimator'!$L22),Lookups!$D$30)))-('Non-Lighting Rebate Estimator'!$D22*1000))*'Non-Lighting Rebate Estimator'!$N22/1000000)*'Non-Lighting Rebate Estimator'!$B22,"")*'Non-Lighting Rebate Estimator'!$U22 ->  | O17: =IFERROR((((('Non-Lighting Rebate Estimator'!$D22*1000)*'Non-Lighting Rebate Estimator'!$F22/(IF('Non-Lighting Rebate Estimator'!$H22="yes",'Non-Lighting Rebate Estimator'!$J22*(1-Lookups!$I$10)^(2016-'Non-Lighting Rebate Estimator'!$L22),Lookups!$D$30)))-('Non-Lighting Rebate Estimator'!$D22*1000))*'Non-Lighting Rebate Estimator'!$N22/1000000)*'Non-Lighting Rebate Estimator'!$B22,"")*'Non-Lighting Rebate Estimator'!$U22 ->  | P17: =(IF('Non-Lighting Rebate Estimator'!$H22="yes",'Incremental Cost'!$I$25*'Non-Lighting Rebate Estimator'!U22,'Incremental Cost'!$H$25*'Non-Lighting Rebate Estimator'!U22)+'Non-Lighting Rebate Estimator'!$X22)/(('Non-Lighting Rebate Estimator'!$O22*10)*Lookups!$M$4) -> 
A18: 80000 | C18: 775.83 | D18: 75000 | E18: 575 | F18: 200.83 | K18: Natural Gas Furnace <=225 kBTU, minimum 92% AFUE | L18: 1 | M18: =IFERROR(ROUND((($O18-$N18)*10*Lookups!$M$4*$P18/'Non-Lighting Rebate Estimator'!$U23*L18),0),0) -> 0 | N18: =IFERROR((((('Non-Lighting Rebate Estimator'!$D23*1000)*92%/(IF('Non-Lighting Rebate Estimator'!$H23="yes",'Non-Lighting Rebate Estimator'!$J23*(1-Lookups!$I$10)^(2016-'Non-Lighting Rebate Estimator'!$L23),Lookups!$D$30)))-('Non-Lighting Rebate Estimator'!$D23*1000))*'Non-Lighting Rebate Estimator'!$N23/1000000)*'Non-Lighting Rebate Estimator'!$B23,"")*'Non-Lighting Rebate Estimator'!$U23 ->  | O18: =IFERROR((((('Non-Lighting Rebate Estimator'!$D23*1000)*'Non-Lighting Rebate Estimator'!$F23/(IF('Non-Lighting Rebate Estimator'!$H23="yes",'Non-Lighting Rebate Estimator'!$J23*(1-Lookups!$I$10)^(2016-'Non-Lighting Rebate Estimator'!$L23),Lookups!$D$30)))-('Non-Lighting Rebate Estimator'!$D23*1000))*'Non-Lighting Rebate Estimator'!$N23/1000000)*'Non-Lighting Rebate Estimator'!$B23,"")*'Non-Lighting Rebate Estimator'!$U23 ->  | P18: =(IF('Non-Lighting Rebate Estimator'!$H23="yes",'Incremental Cost'!$I$25*'Non-Lighting Rebate Estimator'!U23,'Incremental Cost'!$H$25*'Non-Lighting Rebate Estimator'!U23)+'Non-Lighting Rebate Estimator'!$X23)/(('Non-Lighting Rebate Estimator'!$O23*10)*Lookups!$M$4) -> 
A19: 90000 | C19: 785.68 | D19: 100000 | E19: 625 | F19: 160.68 | K19: Natural Gas Furnace <=225 kBTU, minimum 92% AFUE | L19: 1 | M19: =IFERROR(ROUND((($O19-$N19)*10*Lookups!$M$4*$P19/'Non-Lighting Rebate Estimator'!$U24*L19),0),0) -> 0 | N19: =IFERROR((((('Non-Lighting Rebate Estimator'!$D24*1000)*92%/(IF('Non-Lighting Rebate Estimator'!$H24="yes",'Non-Lighting Rebate Estimator'!$J24*(1-Lookups!$I$10)^(2016-'Non-Lighting Rebate Estimator'!$L24),Lookups!$D$30)))-('Non-Lighting Rebate Estimator'!$D24*1000))*'Non-Lighting Rebate Estimator'!$N24/1000000)*'Non-Lighting Rebate Estimator'!$B24,"")*'Non-Lighting Rebate Estimator'!$U24 ->  | O19: =IFERROR((((('Non-Lighting Rebate Estimator'!$D24*1000)*'Non-Lighting Rebate Estimator'!$F24/(IF('Non-Lighting Rebate Estimator'!$H24="yes",'Non-Lighting Rebate Estimator'!$J24*(1-Lookups!$I$10)^(2016-'Non-Lighting Rebate Estimator'!$L24),Lookups!$D$30)))-('Non-Lighting Rebate Estimator'!$D24*1000))*'Non-Lighting Rebate Estimator'!$N24/1000000)*'Non-Lighting Rebate Estimator'!$B24,"")*'Non-Lighting Rebate Estimator'!$U24 ->  | P19: =(IF('Non-Lighting Rebate Estimator'!$H24="yes",'Incremental Cost'!$I$25*'Non-Lighting Rebate Estimator'!U24,'Incremental Cost'!$H$25*'Non-Lighting Rebate Estimator'!U24)+'Non-Lighting Rebate Estimator'!$X24)/(('Non-Lighting Rebate Estimator'!$O24*10)*Lookups!$M$4) -> 
A20: 100000 | C20: 811.8 | D20: 100000 | E20: 625 | F20: 186.8
A21: 115000 | C21: 893.02 | D21: 100000 | E21: 625 | F21: 268.02
A22: 120000 | C22: 912.86 | D22: 125000 | E22: 655 | F22: 257.86
A23: 125000 | C23: 948.29 | D23: 125000 | E23: 655 | F23: 293.29
A24: 140000 | C24: 1079 | D24: 150000 | E24: 670 | F24: 409
B25: Avg | C25: =AVERAGE(C16:C24) -> 865.9655556 | E25: =AVERAGE(E16:E24) -> 611.1111111 | F25: =AVERAGE(F16:F24) -> 254.8544444 | G25: 80 | H25: 100 | I25: 120
A27: DX Equipment
A28: Table: Deemed Baseline Efficiencies (IECC 2009) | D28: Incremental Cost per Ton ($/ton)
A29: Equipment | B29: SEER | C29: EER
A30: Rooftop AC Units, <5.4 tons, 17.0 SEER | B30: 13 | C30: 11.05 | D30: =79+65 -> 144
A31: Rooftop AC Units, 5.5 - 11.3 tons, 12.0 EER | B31: 12.9 | C31: 11 | D31: =79+65 -> 144
A32: Rooftop AC Units, 11.4 - 20 tons, 12.0 EER | B32: 12.7 | C32: 10.8 | D32: 144
A33: Split Systems <5.4 tons, 15 SEER | B33: 13 | C33: 11.05 | D33: 144
A34: Condensing Units 15 SEER | B34: 13 | C34: 11.05 | D34: 144
B36: RS Means Green Building Cost Data | H36: EER = 0.9 SEER
B37: Full Cost ($)
A38: Equipment | B38: Tons | C38: RTU Cost 13 SEER Baseline | D38: RTU 13 SEER Full Cost ($/ton) | E38: RTU 15 SEER Full Cost | F38: RTU 15 SEER Full Cost ($/ton) | G38: Xcel Rebate ($/ton) | H38: Bouler Rebate ($/ton) - Replace on Burnout | I38: Bouler Rebate ($/ton) - Early Replacement | J38: Source: CO-DSM Plan 2015/2016 (Deemed Savings Technical Assumptions) | L38: Bonus Rebate Scaling Factor | M38: Bonus Rebate ($/ton) | N38: Min. Efficiency Savings (kWh) | O38: Actual Efficiency Savings (kWh) | P38: $/GHG Saved (Xcel + ES)
A39: 3 ton cooling, 60 MBH Heating | B39: 3 | C39: 3850 | D39: =C39/B39 -> 1283.333333 | E39: =C39+($D$30*B39) -> 4282 | F39: =E39/B39 -> 1427.333333 | K39: Rooftop AC Units, <=5.4 tons, 17.0 SEER | L39: 1 | M39: =IFERROR(ROUND((O39-N39)*Lookups!$M$3*P39/'Non-Lighting Rebate Estimator'!U27,0)*L39,0) -> 0 | N39: =IFERROR(IFERROR((('Non-Lighting Rebate Estimator'!$D27*12000)/1000)*'Non-Lighting Rebate Estimator'!$N27*((1/(IF('Non-Lighting Rebate Estimator'!$H27="yes",'Non-Lighting Rebate Estimator'!$J27*(1-Lookups!$I$9)^(2016-'Non-Lighting Rebate Estimator'!$L27),Lookups!$F$30)))-(1/IF('Non-Lighting Rebate Estimator'!$G27="Yes",17*Lookups!$E$44,17))),"")*'Non-Lighting Rebate Estimator'!$B27,"") ->  | O39: =IFERROR(IFERROR((('Non-Lighting Rebate Estimator'!$D27*12000)/1000)*'Non-Lighting Rebate Estimator'!$N27*((1/(IF('Non-Lighting Rebate Estimator'!$H27="yes",'Non-Lighting Rebate Estimator'!$J27*(1-Lookups!$I$9)^(2016-'Non-Lighting Rebate Estimator'!$L27),Lookups!$F$30)))-(1/IF('Non-Lighting Rebate Estimator'!$G27="Yes",'Non-Lighting Rebate Estimator'!$F27*Lookups!$E$44,'Non-Lighting Rebate Estimator'!$F27))),"")*'Non-Lighting Rebate Estimator'!$B27,"") ->  | P39: =(IF('Non-Lighting Rebate Estimator'!H27="yes",'Incremental Cost'!$I$50*'Non-Lighting Rebate Estimator'!U27,'Incremental Cost'!$H$50*'Non-Lighting Rebate Estimator'!U27)+'Non-Lighting Rebate Estimator'!X27)/(('Non-Lighting Rebate Estimator'!O27)*Lookups!$M$3) -> 
A40: 4 ton cooling, 95 MBH Heating | B40: 4 | C40: 4525 | D40: =C40/B40 -> 1131.25 | E40: 5101 | F40: 1275.25 | K40: Rooftop AC Units, <=5.4 tons, 17.0 SEER | L40: 1 | M40: =IFERROR(ROUND((O40-N40)*Lookups!$M$3*P40/'Non-Lighting Rebate Estimator'!U28,0)*L40,0) -> 0 | N40: =IFERROR(IFERROR((('Non-Lighting Rebate Estimator'!$D28*12000)/1000)*'Non-Lighting Rebate Estimator'!$N28*((1/(IF('Non-Lighting Rebate Estimator'!$H28="yes",'Non-Lighting Rebate Estimator'!$J28*(1-Lookups!$I$9)^(2016-'Non-Lighting Rebate Estimator'!$L28),Lookups!$F$30)))-(1/IF('Non-Lighting Rebate Estimator'!$G28="Yes",17*Lookups!$E$44,17))),"")*'Non-Lighting Rebate Estimator'!$B28,"") ->  | O40: =IFERROR(IFERROR((('Non-Lighting Rebate Estimator'!$D28*12000)/1000)*'Non-Lighting Rebate Estimator'!$N28*((1/(IF('Non-Lighting Rebate Estimator'!$H28="yes",'Non-Lighting Rebate Estimator'!$J28*(1-Lookups!$I$9)^(2016-'Non-Lighting Rebate Estimator'!$L28),Lookups!$F$30)))-(1/IF('Non-Lighting Rebate Estimator'!$G28="Yes",'Non-Lighting Rebate Estimator'!$F28*Lookups!$E$44,'Non-Lighting Rebate Estimator'!$F28))),"")*'Non-Lighting Rebate Estimator'!$B28,"") ->  | P40: =(IF('Non-Lighting Rebate Estimator'!H28="yes",'Incremental Cost'!$I$50*'Non-Lighting Rebate Estimator'!U28,'Incremental Cost'!$H$50*'Non-Lighting Rebate Estimator'!U28)+'Non-Lighting Rebate Estimator'!X28)/(('Non-Lighting Rebate Estimator'!O28)*Lookups!$M$3) -> 
A41: 5 ton cooling, 112 MBH Heating | B41: 5 | C41: 5275 | D41: 1055 | E41: 5995 | F41: 1199 | K41: Rooftop AC Units, <=5.4 tons, 17.0 SEER | L41: 1 | M41: =IFERROR(ROUND((O41-N41)*Lookups!$M$3*P41/'Non-Lighting Rebate Estimator'!U29,0)*L41,0) -> 0 | N41: =IFERROR(IFERROR((('Non-Lighting Rebate Estimator'!$D29*12000)/1000)*'Non-Lighting Rebate Estimator'!$N29*((1/(IF('Non-Lighting Rebate Estimator'!$H29="yes",'Non-Lighting Rebate Estimator'!$J29*(1-Lookups!$I$9)^(2016-'Non-Lighting Rebate Estimator'!$L29),Lookups!$F$30)))-(1/IF('Non-Lighting Rebate Estimator'!$G29="Yes",17*Lookups!$E$44,17))),"")*'Non-Lighting Rebate Estimator'!$B29,"") ->  | O41: =IFERROR(IFERROR((('Non-Lighting Rebate Estimator'!$D29*12000)/1000)*'Non-Lighting Rebate Estimator'!$N29*((1/(IF('Non-Lighting Rebate Estimator'!$H29="yes",'Non-Lighting Rebate Estimator'!$J29*(1-Lookups!$I$9)^(2016-'Non-Lighting Rebate Estimator'!$L29),Lookups!$F$30)))-(1/IF('Non-Lighting Rebate Estimator'!$G29="Yes",'Non-Lighting Rebate Estimator'!$F29*Lookups!$E$44,'Non-Lighting Rebate Estimator'!$F29))),"")*'Non-Lighting Rebate Estimator'!$B29,"") ->  | P41: =(IF('Non-Lighting Rebate Estimator'!H29="yes",'Incremental Cost'!$I$50*'Non-Lighting Rebate Estimator'!U29,'Incremental Cost'!$H$50*'Non-Lighting Rebate Estimator'!U29)+'Non-Lighting Rebate Estimator'!X29)/(('Non-Lighting Rebate Estimator'!O29)*Lookups!$M$3) -> 
A42: 6 ton cooling, 140 MBH Heating | B42: 6 | C42: 6200 | D42: 1033.333333 | E42: 7064 | F42: 1177.333333 | K42: Rooftop AC Units, <=5.4 tons, 17.0 SEER | L42: 1 | M42: =IFERROR(ROUND((O42-N42)*Lookups!$M$3*P42/'Non-Lighting Rebate Estimator'!U30,0)*L42,0) -> 0 | N42: =IFERROR(IFERROR((('Non-Lighting Rebate Estimator'!$D30*12000)/1000)*'Non-Lighting Rebate Estimator'!$N30*((1/(IF('Non-Lighting Rebate Estimator'!$H30="yes",'Non-Lighting Rebate Estimator'!$J30*(1-Lookups!$I$9)^(2016-'Non-Lighting Rebate Estimator'!$L30),Lookups!$F$30)))-(1/IF('Non-Lighting Rebate Estimator'!$G30="Yes",17*Lookups!$E$44,17))),"")*'Non-Lighting Rebate Estimator'!$B30,"") ->  | O42: =IFERROR(IFERROR((('Non-Lighting Rebate Estimator'!$D30*12000)/1000)*'Non-Lighting Rebate Estimator'!$N30*((1/(IF('Non-Lighting Rebate Estimator'!$H30="yes",'Non-Lighting Rebate Estimator'!$J30*(1-Lookups!$I$9)^(2016-'Non-Lighting Rebate Estimator'!$L30),Lookups!$F$30)))-(1/IF('Non-Lighting Rebate Estimator'!$G30="Yes",'Non-Lighting Rebate Estimator'!$F30*Lookups!$E$44,'Non-Lighting Rebate Estimator'!$F30))),"")*'Non-Lighting Rebate Estimator'!$B30,"") ->  | P42: =(IF('Non-Lighting Rebate Estimator'!H30="yes",'Incremental Cost'!$I$50*'Non-Lighting Rebate Estimator'!U30,'Incremental Cost'!$H$50*'Non-Lighting Rebate Estimator'!U30)+'Non-Lighting Rebate Estimator'!X30)/(('Non-Lighting Rebate Estimator'!O30)*Lookups!$M$3) -> 
A43: 7.5 ton cooling, 170 MBH Heating | B43: 7.5 | C43: 8125 | D43: 1083.333333 | E43: 9205 | F43: 1227.333333 | K43: Rooftop AC Units, 5.5 - 11.3 tons, 12.0 EER | L43: 1 | M43: =IFERROR(ROUND((O43-N43)*Lookups!$M$3*P43/'Non-Lighting Rebate Estimator'!U31,0)*L43,0) -> 0 | N43: =IFERROR(IFERROR((('Non-Lighting Rebate Estimator'!$D31*12000)/1000)*'Non-Lighting Rebate Estimator'!$N31*((1/(IF('Non-Lighting Rebate Estimator'!$H31="yes",'Non-Lighting Rebate Estimator'!$J31*(1-Lookups!$I$9)^(2016-'Non-Lighting Rebate Estimator'!$L31),Lookups!$H$30)))-(1/IF('Non-Lighting Rebate Estimator'!$G31="Yes",12*Lookups!$E$44,12))),"")*'Non-Lighting Rebate Estimator'!$B31,"") ->  | O43: =IFERROR(IFERROR((('Non-Lighting Rebate Estimator'!$D31*12000)/1000)*'Non-Lighting Rebate Estimator'!$N31*((1/(IF('Non-Lighting Rebate Estimator'!$H31="yes",'Non-Lighting Rebate Estimator'!$J31*(1-Lookups!$I$9)^(2016-'Non-Lighting Rebate Estimator'!$L31),Lookups!$H$30)))-(1/IF('Non-Lighting Rebate Estimator'!$G31="Yes",'Non-Lighting Rebate Estimator'!$F31*Lookups!$E$44,'Non-Lighting Rebate Estimator'!$F31))),"")*'Non-Lighting Rebate Estimator'!$B31,"") ->  | P43: =(IF('Non-Lighting Rebate Estimator'!H31="yes",'Incremental Cost'!$I$50*'Non-Lighting Rebate Estimator'!U31,'Incremental Cost'!$H$50*'Non-Lighting Rebate Estimator'!U31)+'Non-Lighting Rebate Estimator'!X31)/(('Non-Lighting Rebate Estimator'!O31)*Lookups!$M$3) -> 
A44: 8.5 ton cooling, 170 MBH Heating | B44: 8.5 | C44: 8800 | D44: 1035.294118 | E44: 10024 | F44: 1179.294118 | K44: Rooftop AC Units, 5.5 - 11.3 tons, 12.0 EER | L44: 1 | M44: =IFERROR(ROUND((O44-N44)*Lookups!$M$3*P44/'Non-Lighting Rebate Estimator'!U32,0)*L44,0) -> 0 | N44: =IFERROR(IFERROR((('Non-Lighting Rebate Estimator'!$D32*12000)/1000)*'Non-Lighting Rebate Estimator'!$N32*((1/(IF('Non-Lighting Rebate Estimator'!$H32="yes",'Non-Lighting Rebate Estimator'!$J32*(1-Lookups!$I$9)^(2016-'Non-Lighting Rebate Estimator'!$L32),Lookups!$H$30)))-(1/IF('Non-Lighting Rebate Estimator'!$G32="Yes",12*Lookups!$E$44,12))),"")*'Non-Lighting Rebate Estimator'!$B32,"") ->  | O44: =IFERROR(IFERROR((('Non-Lighting Rebate Estimator'!$D32*12000)/1000)*'Non-Lighting Rebate Estimator'!$N32*((1/(IF('Non-Lighting Rebate Estimator'!$H32="yes",'Non-Lighting Rebate Estimator'!$J32*(1-Lookups!$I$9)^(2016-'Non-Lighting Rebate Estimator'!$L32),Lookups!$H$30)))-(1/IF('Non-Lighting Rebate Estimator'!$G32="Yes",'Non-Lighting Rebate Estimator'!$F32*Lookups!$E$44,'Non-Lighting Rebate Estimator'!$F32))),"")*'Non-Lighting Rebate Estimator'!$B32,"") ->  | P44: =(IF('Non-Lighting Rebate Estimator'!H32="yes",'Incremental Cost'!$I$50*'Non-Lighting Rebate Estimator'!U32,'Incremental Cost'!$H$50*'Non-Lighting Rebate Estimator'!U32)+'Non-Lighting Rebate Estimator'!X32)/(('Non-Lighting Rebate Estimator'!O32)*Lookups!$M$3) -> 
A45: 10 ton cooling, 200 MBH Heating | B45: 10 | C45: 11600 | D45: 1160 | E45: 13040 | F45: 1304 | K45: Rooftop AC Units, 5.5 - 11.3 tons, 12.0 EER | L45: 1 | M45: =IFERROR(ROUND((O45-N45)*Lookups!$M$3*P45/'Non-Lighting Rebate Estimator'!U33,0)*L45,0) -> 0 | N45: =IFERROR(IFERROR((('Non-Lighting Rebate Estimator'!$D33*12000)/1000)*'Non-Lighting Rebate Estimator'!$N33*((1/(IF('Non-Lighting Rebate Estimator'!$H33="yes",'Non-Lighting Rebate Estimator'!$J33*(1-Lookups!$I$9)^(2016-'Non-Lighting Rebate Estimator'!$L33),Lookups!$H$30)))-(1/IF('Non-Lighting Rebate Estimator'!$G33="Yes",12*Lookups!$E$44,12))),"")*'Non-Lighting Rebate Estimator'!$B33,"") ->  | O45: =IFERROR(IFERROR((('Non-Lighting Rebate Estimator'!$D33*12000)/1000)*'Non-Lighting Rebate Estimator'!$N33*((1/(IF('Non-Lighting Rebate Estimator'!$H33="yes",'Non-Lighting Rebate Estimator'!$J33*(1-Lookups!$I$9)^(2016-'Non-Lighting Rebate Estimator'!$L33),Lookups!$H$30)))-(1/IF('Non-Lighting Rebate Estimator'!$G33="Yes",'Non-Lighting Rebate Estimator'!$F33*Lookups!$E$44,'Non-Lighting Rebate Estimator'!$F33))),"")*'Non-Lighting Rebate Estimator'!$B33,"") ->  | P45: =(IF('Non-Lighting Rebate Estimator'!H33="yes",'Incremental Cost'!$I$50*'Non-Lighting Rebate Estimator'!U33,'Incremental Cost'!$H$50*'Non-Lighting Rebate Estimator'!U33)+'Non-Lighting Rebate Estimator'!X33)/(('Non-Lighting Rebate Estimator'!O33)*Lookups!$M$3) -> 
A46: 12.5 ton cooling, 230 MBH Heating | B46: 12.5 | C46: 14900 | D46: 1192 | E46: 16700 | F46: 1336 | K46: Rooftop AC Units, 5.5 - 11.3 tons, 12.0 EER | L46: 1 | M46: =IFERROR(ROUND((O46-N46)*Lookups!$M$3*P46/'Non-Lighting Rebate Estimator'!U34,0)*L46,0) -> 0 | N46: =IFERROR(IFERROR((('Non-Lighting Rebate Estimator'!$D34*12000)/1000)*'Non-Lighting Rebate Estimator'!$N34*((1/(IF('Non-Lighting Rebate Estimator'!$H34="yes",'Non-Lighting Rebate Estimator'!$J34*(1-Lookups!$I$9)^(2016-'Non-Lighting Rebate Estimator'!$L34),Lookups!$H$30)))-(1/IF('Non-Lighting Rebate Estimator'!$G34="Yes",12*Lookups!$E$44,12))),"")*'Non-Lighting Rebate Estimator'!$B34,"") ->  | O46: =IFERROR(IFERROR((('Non-Lighting Rebate Estimator'!$D34*12000)/1000)*'Non-Lighting Rebate Estimator'!$N34*((1/(IF('Non-Lighting Rebate Estimator'!$H34="yes",'Non-Lighting Rebate Estimator'!$J34*(1-Lookups!$I$9)^(2016-'Non-Lighting Rebate Estimator'!$L34),Lookups!$H$30)))-(1/IF('Non-Lighting Rebate Estimator'!$G34="Yes",'Non-Lighting Rebate Estimator'!$F34*Lookups!$E$44,'Non-Lighting Rebate Estimator'!$F34))),"")*'Non-Lighting Rebate Estimator'!$B34,"") ->  | P46: =(IF('Non-Lighting Rebate Estimator'!H34="yes",'Incremental Cost'!$I$50*'Non-Lighting Rebate Estimator'!U34,'Incremental Cost'!$H$50*'Non-Lighting Rebate Estimator'!U34)+'Non-Lighting Rebate Estimator'!X34)/(('Non-Lighting Rebate Estimator'!O34)*Lookups!$M$3) -> 
A47: 15 ton cooling, 270 MBH Heating | B47: 15 | C47: 17000 | D47: 1133.333333 | E47: 19160 | F47: 1277.333333 | K47: Rooftop AC Units, 11.4 - 20 tons, 12.0 EER | L47: 1 | M47: =IFERROR(ROUND((O47-N47)*Lookups!$M$3*P47/'Non-Lighting Rebate Estimator'!U35,0)*L47,0) -> 0 | N47: =IFERROR(IFERROR((('Non-Lighting Rebate Estimator'!$D35*12000)/1000)*'Non-Lighting Rebate Estimator'!$N35*((1/(IF('Non-Lighting Rebate Estimator'!$H35="yes",'Non-Lighting Rebate Estimator'!$J35*(1-Lookups!$I$9)^(2016-'Non-Lighting Rebate Estimator'!$L35),Lookups!$J$30)))-(1/IF('Non-Lighting Rebate Estimator'!$G35="Yes",12*Lookups!$E$44,12))),"")*'Non-Lighting Rebate Estimator'!$B35,"") ->  | O47: =IFERROR(IFERROR((('Non-Lighting Rebate Estimator'!$D35*12000)/1000)*'Non-Lighting Rebate Estimator'!$N35*((1/(IF('Non-Lighting Rebate Estimator'!$H35="yes",'Non-Lighting Rebate Estimator'!$J35*(1-Lookups!$I$9)^(2016-'Non-Lighting Rebate Estimator'!$L35),Lookups!$J$30)))-(1/IF('Non-Lighting Rebate Estimator'!$G35="Yes",'Non-Lighting Rebate Estimator'!$F35*Lookups!$E$44,'Non-Lighting Rebate Estimator'!$F35))),"")*'Non-Lighting Rebate Estimator'!$B35,"") ->  | P47: =(IF('Non-Lighting Rebate Estimator'!H35="yes",'Incremental Cost'!$I$50*'Non-Lighting Rebate Estimator'!U35,'Incremental Cost'!$H$50*'Non-Lighting Rebate Estimator'!U35)+'Non-Lighting Rebate Estimator'!X35)/(('Non-Lighting Rebate Estimator'!O35)*Lookups!$M$3) -> 
A48: 17.5 ton cooling, 330 MBH Heating | B48: 17.5 | C48: 17800 | D48: 1017.142857 | E48: 20320 | F48: 1161.142857 | K48: Rooftop AC Units, 11.4 - 20 tons, 12.0 EER | L48: 1 | M48: =IFERROR(ROUND((O48-N48)*Lookups!$M$3*P48/'Non-Lighting Rebate Estimator'!U36,0)*L48,0) -> 0 | N48: =IFERROR(IFERROR((('Non-Lighting Rebate Estimator'!$D36*12000)/1000)*'Non-Lighting Rebate Estimator'!$N36*((1/(IF('Non-Lighting Rebate Estimator'!$H36="yes",'Non-Lighting Rebate Estimator'!$J36*(1-Lookups!$I$9)^(2016-'Non-Lighting Rebate Estimator'!$L36),Lookups!$J$30)))-(1/IF('Non-Lighting Rebate Estimator'!$G36="Yes",12*Lookups!$E$44,12))),"")*'Non-Lighting Rebate Estimator'!$B36,"") ->  | O48: =IFERROR(IFERROR((('Non-Lighting Rebate Estimator'!$D36*12000)/1000)*'Non-Lighting Rebate Estimator'!$N36*((1/(IF('Non-Lighting Rebate Estimator'!$H36="yes",'Non-Lighting Rebate Estimator'!$J36*(1-Lookups!$I$9)^(2016-'Non-Lighting Rebate Estimator'!$L36),Lookups!$J$30)))-(1/IF('Non-Lighting Rebate Estimator'!$G36="Yes",'Non-Lighting Rebate Estimator'!$F36*Lookups!$E$44,'Non-Lighting Rebate Estimator'!$F36))),"")*'Non-Lighting Rebate Estimator'!$B36,"") ->  | P48: =(IF('Non-Lighting Rebate Estimator'!H36="yes",'Incremental Cost'!$I$50*'Non-Lighting Rebate Estimator'!U36,'Incremental Cost'!$H$50*'Non-Lighting Rebate Estimator'!U36)+'Non-Lighting Rebate Estimator'!X36)/(('Non-Lighting Rebate Estimator'!O36)*Lookups!$M$3) -> 
A49: 20 ton cooling, 360 MBH Heating | B49: 20 | C49: 23800 | D49: 1190 | E49: 26680 | F49: 1334 | K49: Rooftop AC Units, 11.4 - 20 tons, 12.0 EER | L49: 1 | M49: =IFERROR(ROUND((O49-N49)*Lookups!$M$3*P49/'Non-Lighting Rebate Estimator'!U37,0)*L49,0) -> 0 | N49: =IFERROR(IFERROR((('Non-Lighting Rebate Estimator'!$D37*12000)/1000)*'Non-Lighting Rebate Estimator'!$N37*((1/(IF('Non-Lighting Rebate Estimator'!$H37="yes",'Non-Lighting Rebate Estimator'!$J37*(1-Lookups!$I$9)^(2016-'Non-Lighting Rebate Estimator'!$L37),Lookups!$J$30)))-(1/IF('Non-Lighting Rebate Estimator'!$G37="Yes",12*Lookups!$E$44,12))),"")*'Non-Lighting Rebate Estimator'!$B37,"") ->  | O49: =IFERROR(IFERROR((('Non-Lighting Rebate Estimator'!$D37*12000)/1000)*'Non-Lighting Rebate Estimator'!$N37*((1/(IF('Non-Lighting Rebate Estimator'!$H37="yes",'Non-Lighting Rebate Estimator'!$J37*(1-Lookups!$I$9)^(2016-'Non-Lighting Rebate Estimator'!$L37),Lookups!$J$30)))-(1/IF('Non-Lighting Rebate Estimator'!$G37="Yes",'Non-Lighting Rebate Estimator'!$F37*Lookups!$E$44,'Non-Lighting Rebate Estimator'!$F37))),"")*'Non-Lighting Rebate Estimator'!$B37,"") ->  | P49: =(IF('Non-Lighting Rebate Estimator'!H37="yes",'Incremental Cost'!$I$50*'Non-Lighting Rebate Estimator'!U37,'Incremental Cost'!$H$50*'Non-Lighting Rebate Estimator'!U37)+'Non-Lighting Rebate Estimator'!X37)/(('Non-Lighting Rebate Estimator'!O37)*Lookups!$M$3) -> 
C50: Average | D50: =AVERAGE(D39:D49) -> 1119.456392 | F50: =AVERAGE(F39:F49) -> 1263.456392 | G50: 65 | H50: =D30-G50 -> 79 | I50: =ROUND(F50*30%-G50,0) -> 314 | K50: Rooftop AC Units, 11.4 - 20 tons, 12.0 EER | L50: 1 | M50: =IFERROR(ROUND((O50-N50)*Lookups!$M$3*P50/'Non-Lighting Rebate Estimator'!U38,0)*L50,0) -> 0 | N50: =IFERROR(IFERROR((('Non-Lighting Rebate Estimator'!$D38*12000)/1000)*'Non-Lighting Rebate Estimator'!$N38*((1/(IF('Non-Lighting Rebate Estimator'!$H38="yes",'Non-Lighting Rebate Estimator'!$J38*(1-Lookups!$I$9)^(2016-'Non-Lighting Rebate Estimator'!$L38),Lookups!$J$30)))-(1/IF('Non-Lighting Rebate Estimator'!$G38="Yes",12*Lookups!$E$44,12))),"")*'Non-Lighting Rebate Estimator'!$B38,"") ->  | O50: =IFERROR(IFERROR((('Non-Lighting Rebate Estimator'!$D38*12000)/1000)*'Non-Lighting Rebate Estimator'!$N38*((1/(IF('Non-Lighting Rebate Estimator'!$H38="yes",'Non-Lighting Rebate Estimator'!$J38*(1-Lookups!$I$9)^(2016-'Non-Lighting Rebate Estimator'!$L38),Lookups!$J$30)))-(1/IF('Non-Lighting Rebate Estimator'!$G38="Yes",'Non-Lighting Rebate Estimator'!$F38*Lookups!$E$44,'Non-Lighting Rebate Estimator'!$F38))),"")*'Non-Lighting Rebate Estimator'!$B38,"") ->  | P50: =(IF('Non-Lighting Rebate Estimator'!H38="yes",'Incremental Cost'!$I$50*'Non-Lighting Rebate Estimator'!U38,'Incremental Cost'!$H$50*'Non-Lighting Rebate Estimator'!U38)+'Non-Lighting Rebate Estimator'!X38)/(('Non-Lighting Rebate Estimator'!O38)*Lookups!$M$3) -> 
K51: Split Systems <=5.4 tons, 15 SEER | L51: 1 | M51: =IFERROR(ROUND((O51-N51)*Lookups!$M$3*P51/'Non-Lighting Rebate Estimator'!U39,0)*L51,0) -> 0 | N51: =IFERROR(IFERROR((('Non-Lighting Rebate Estimator'!$D39*12000)/1000)*'Non-Lighting Rebate Estimator'!$N39*((1/(IF('Non-Lighting Rebate Estimator'!$H39="yes",'Non-Lighting Rebate Estimator'!$J39*(1-Lookups!$I$9)^(2016-'Non-Lighting Rebate Estimator'!$L39),Lookups!$F$30)))-(1/15)),"")*'Non-Lighting Rebate Estimator'!$B39,"") ->  | O51: =IFERROR(IFERROR((('Non-Lighting Rebate Estimator'!$D39*12000)/1000)*'Non-Lighting Rebate Estimator'!$N39*((1/(IF('Non-Lighting Rebate Estimator'!$H39="yes",'Non-Lighting Rebate Estimator'!$J39*(1-Lookups!$I$9)^(2016-'Non-Lighting Rebate Estimator'!$L39),Lookups!$F$30)))-(1/'Non-Lighting Rebate Estimator'!$F39)),"")*'Non-Lighting Rebate Estimator'!$B39,"") ->  | P51: =(IF('Non-Lighting Rebate Estimator'!H39="yes",'Incremental Cost'!$I$50*'Non-Lighting Rebate Estimator'!U39,'Incremental Cost'!$H$50*'Non-Lighting Rebate Estimator'!U39)+'Non-Lighting Rebate Estimator'!X39)/(('Non-Lighting Rebate Estimator'!O39)*Lookups!$M$3) -> 
A52: VFD HVAC Fans | K52: Split Systems <=5.4 tons, 15 SEER | L52: 1 | M52: =IFERROR(ROUND((O52-N52)*Lookups!$M$3*P52/'Non-Lighting Rebate Estimator'!U40,0)*L52,0) -> 0 | N52: =IFERROR(IFERROR((('Non-Lighting Rebate Estimator'!$D40*12000)/1000)*'Non-Lighting Rebate Estimator'!$N40*((1/(IF('Non-Lighting Rebate Estimator'!$H40="yes",'Non-Lighting Rebate Estimator'!$J40*(1-Lookups!$I$9)^(2016-'Non-Lighting Rebate Estimator'!$L40),Lookups!$F$30)))-(1/15)),"")*'Non-Lighting Rebate Estimator'!$B40,"") ->  | O52: =IFERROR(IFERROR((('Non-Lighting Rebate Estimator'!$D40*12000)/1000)*'Non-Lighting Rebate Estimator'!$N40*((1/(IF('Non-Lighting Rebate Estimator'!$H40="yes",'Non-Lighting Rebate Estimator'!$J40*(1-Lookups!$I$9)^(2016-'Non-Lighting Rebate Estimator'!$L40),Lookups!$F$30)))-(1/'Non-Lighting Rebate Estimator'!$F40)),"")*'Non-Lighting Rebate Estimator'!$B40,"") ->  | P52: =(IF('Non-Lighting Rebate Estimator'!H40="yes",'Incremental Cost'!$I$50*'Non-Lighting Rebate Estimator'!U40,'Incremental Cost'!$H$50*'Non-Lighting Rebate Estimator'!U40)+'Non-Lighting Rebate Estimator'!X40)/(('Non-Lighting Rebate Estimator'!O40)*Lookups!$M$3) -> 
B53: RS Means Green Building Cost Data | C53: http://www.xcelenergy.com/staticfiles/xe/PDF/Marketing/CO-Bus-Motors-Drive-Efficiency-Rebate-Application-2015.pdf | K53: Split Systems <=5.4 tons, 15 SEER | L53: 1 | M53: =IFERROR(ROUND((O53-N53)*Lookups!$M$3*P53/'Non-Lighting Rebate Estimator'!U41,0)*L53,0) -> 0 | N53: =IFERROR(IFERROR((('Non-Lighting Rebate Estimator'!$D41*12000)/1000)*'Non-Lighting Rebate Estimator'!$N41*((1/(IF('Non-Lighting Rebate Estimator'!$H41="yes",'Non-Lighting Rebate Estimator'!$J41*(1-Lookups!$I$9)^(2016-'Non-Lighting Rebate Estimator'!$L41),Lookups!$F$30)))-(1/15)),"")*'Non-Lighting Rebate Estimator'!$B41,"") ->  | O53: =IFERROR(IFERROR((('Non-Lighting Rebate Estimator'!$D41*12000)/1000)*'Non-Lighting Rebate Estimator'!$N41*((1/(IF('Non-Lighting Rebate Estimator'!$H41="yes",'Non-Lighting Rebate Estimator'!$J41*(1-Lookups!$I$9)^(2016-'Non-Lighting Rebate Estimator'!$L41),Lookups!$F$30)))-(1/'Non-Lighting Rebate Estimator'!$F41)),"")*'Non-Lighting Rebate Estimator'!$B41,"") ->  | P53: =(IF('Non-Lighting Rebate Estimator'!H41="yes",'Incremental Cost'!$I$50*'Non-Lighting Rebate Estimator'!U41,'Incremental Cost'!$H$50*'Non-Lighting Rebate Estimator'!U41)+'Non-Lighting Rebate Estimator'!X41)/(('Non-Lighting Rebate Estimator'!O41)*Lookups!$M$3) -> 
A54: VFD Size (HP) | B54: Full Cost ($) | C54: Xcel Rebate | D54: Bouler Rebate - Replace on Burnout | E54: Bouler Rebate - Early Replacement | K54: Split Systems <=5.4 tons, 15 SEER | L54: 1 | M54: =IFERROR(ROUND((O54-N54)*Lookups!$M$3*P54/'Non-Lighting Rebate Estimator'!U42,0)*L54,0) -> 0 | N54: =IFERROR(IFERROR((('Non-Lighting Rebate Estimator'!$D42*12000)/1000)*'Non-Lighting Rebate Estimator'!$N42*((1/(IF('Non-Lighting Rebate Estimator'!$H42="yes",'Non-Lighting Rebate Estimator'!$J42*(1-Lookups!$I$9)^(2016-'Non-Lighting Rebate Estimator'!$L42),Lookups!$F$30)))-(1/15)),"")*'Non-Lighting Rebate Estimator'!$B42,"") ->  | O54: =IFERROR(IFERROR((('Non-Lighting Rebate Estimator'!$D42*12000)/1000)*'Non-Lighting Rebate Estimator'!$N42*((1/(IF('Non-Lighting Rebate Estimator'!$H42="yes",'Non-Lighting Rebate Estimator'!$J42*(1-Lookups!$I$9)^(2016-'Non-Lighting Rebate Estimator'!$L42),Lookups!$F$30)))-(1/'Non-Lighting Rebate Estimator'!$F42)),"")*'Non-Lighting Rebate Estimator'!$B42,"") ->  | P54: =(IF('Non-Lighting Rebate Estimator'!H42="yes",'Incremental Cost'!$I$50*'Non-Lighting Rebate Estimator'!U42,'Incremental Cost'!$H$50*'Non-Lighting Rebate Estimator'!U42)+'Non-Lighting Rebate Estimator'!X42)/(('Non-Lighting Rebate Estimator'!O42)*Lookups!$M$3) -> 
A55: 3 HP | B55: 2425 | C55: 600 | D55: n/a | E55: =ROUND(B55*50%-C55,0) -> 613 | F55: =C55/B55 -> 0.2474226804 | K55: Condensing Units 15 SEER | L55: 1 | M55: =IFERROR(ROUND((O55-N55)*Lookups!$M$3*P55/'Non-Lighting Rebate Estimator'!U43,0)*L55,0) -> 0 | N55: =IFERROR(IFERROR((('Non-Lighting Rebate Estimator'!$D43*12000)/1000)*'Non-Lighting Rebate Estimator'!$N43*((1/(IF('Non-Lighting Rebate Estimator'!$H43="yes",'Non-Lighting Rebate Estimator'!$J43*(1-Lookups!$I$9)^(2016-'Non-Lighting Rebate Estimator'!$L43),Lookups!$F$30)))-(1/15)),"")*'Non-Lighting Rebate Estimator'!$B43,"") ->  | O55: =IFERROR(IFERROR((('Non-Lighting Rebate Estimator'!$D43*12000)/1000)*'Non-Lighting Rebate Estimator'!$N43*((1/(IF('Non-Lighting Rebate Estimator'!$H43="yes",'Non-Lighting Rebate Estimator'!$J43*(1-Lookups!$I$9)^(2016-'Non-Lighting Rebate Estimator'!$L43),Lookups!$F$30)))-(1/'Non-Lighting Rebate Estimator'!$F43)),"")*'Non-Lighting Rebate Estimator'!$B43,"") ->  | P55: =(IF('Non-Lighting Rebate Estimator'!H43="yes",'Incremental Cost'!$I$50*'Non-Lighting Rebate Estimator'!U43,'Incremental Cost'!$H$50*'Non-Lighting Rebate Estimator'!U43)+'Non-Lighting Rebate Estimator'!X43)/(('Non-Lighting Rebate Estimator'!O43)*Lookups!$M$3) -> 
A56: 5 HP | B56: 2625 | C56: 900 | D56: n/a | E56: =ROUND(B56*50%-C56,0) -> 413 | F56: =C56/B56 -> 0.3428571429 | K56: Condensing Units 15 SEER | L56: 1 | M56: =IFERROR(ROUND((O56-N56)*Lookups!$M$3*P56/'Non-Lighting Rebate Estimator'!U44,0)*L56,0) -> 0 | N56: =IFERROR(IFERROR((('Non-Lighting Rebate Estimator'!$D44*12000)/1000)*'Non-Lighting Rebate Estimator'!$N44*((1/(IF('Non-Lighting Rebate Estimator'!$H44="yes",'Non-Lighting Rebate Estimator'!$J44*(1-Lookups!$I$9)^(2016-'Non-Lighting Rebate Estimator'!$L44),Lookups!$F$30)))-(1/15)),"")*'Non-Lighting Rebate Estimator'!$B44,"") ->  | O56: =IFERROR(IFERROR((('Non-Lighting Rebate Estimator'!$D44*12000)/1000)*'Non-Lighting Rebate Estimator'!$N44*((1/(IF('Non-Lighting Rebate Estimator'!$H44="yes",'Non-Lighting Rebate Estimator'!$J44*(1-Lookups!$I$9)^(2016-'Non-Lighting Rebate Estimator'!$L44),Lookups!$F$30)))-(1/'Non-Lighting Rebate Estimator'!$F44)),"")*'Non-Lighting Rebate Estimator'!$B44,"") ->  | P56: =(IF('Non-Lighting Rebate Estimator'!H44="yes",'Incremental Cost'!$I$50*'Non-Lighting Rebate Estimator'!U44,'Incremental Cost'!$H$50*'Non-Lighting Rebate Estimator'!U44)+'Non-Lighting Rebate Estimator'!X44)/(('Non-Lighting Rebate Estimator'!O44)*Lookups!$M$3) -> 
A57: 7.5 HP | B57: 3150 | C57: 1130 | D57: n/a | E57: 445 | F57: 0.3587301587 | K57: Condensing Units 15 SEER | L57: 1 | M57: =IFERROR(ROUND((O57-N57)*Lookups!$M$3*P57/'Non-Lighting Rebate Estimator'!U45,0)*L57,0) -> 0 | N57: =IFERROR(IFERROR((('Non-Lighting Rebate Estimator'!$D45*12000)/1000)*'Non-Lighting Rebate Estimator'!$N45*((1/(IF('Non-Lighting Rebate Estimator'!$H45="yes",'Non-Lighting Rebate Estimator'!$J45*(1-Lookups!$I$9)^(2016-'Non-Lighting Rebate Estimator'!$L45),Lookups!$F$30)))-(1/15)),"")*'Non-Lighting Rebate Estimator'!$B45,"") ->  | O57: =IFERROR(IFERROR((('Non-Lighting Rebate Estimator'!$D45*12000)/1000)*'Non-Lighting Rebate Estimator'!$N45*((1/(IF('Non-Lighting Rebate Estimator'!$H45="yes",'Non-Lighting Rebate Estimator'!$J45*(1-Lookups!$I$9)^(2016-'Non-Lighting Rebate Estimator'!$L45),Lookups!$F$30)))-(1/'Non-Lighting Rebate Estimator'!$F45)),"")*'Non-Lighting Rebate Estimator'!$B45,"") ->  | P57: =(IF('Non-Lighting Rebate Estimator'!H45="yes",'Incremental Cost'!$I$50*'Non-Lighting Rebate Estimator'!U45,'Incremental Cost'!$H$50*'Non-Lighting Rebate Estimator'!U45)+'Non-Lighting Rebate Estimator'!X45)/(('Non-Lighting Rebate Estimator'!O45)*Lookups!$M$3) -> 
A58: 10 HP | B58: 3500 | C58: 1350 | D58: n/a | E58: 400 | F58: 0.3857142857 | K58: Condensing Units 15 SEER | L58: 1 | M58: =IFERROR(ROUND((O58-N58)*Lookups!$M$3*P58/'Non-Lighting Rebate Estimator'!U46,0)*L58,0) -> 0 | N58: =IFERROR(IFERROR((('Non-Lighting Rebate Estimator'!$D46*12000)/1000)*'Non-Lighting Rebate Estimator'!$N46*((1/(IF('Non-Lighting Rebate Estimator'!$H46="yes",'Non-Lighting Rebate Estimator'!$J46*(1-Lookups!$I$9)^(2016-'Non-Lighting Rebate Estimator'!$L46),Lookups!$F$30)))-(1/15)),"")*'Non-Lighting Rebate Estimator'!$B46,"") ->  | O58: =IFERROR(IFERROR((('Non-Lighting Rebate Estimator'!$D46*12000)/1000)*'Non-Lighting Rebate Estimator'!$N46*((1/(IF('Non-Lighting Rebate Estimator'!$H46="yes",'Non-Lighting Rebate Estimator'!$J46*(1-Lookups!$I$9)^(2016-'Non-Lighting Rebate Estimator'!$L46),Lookups!$F$30)))-(1/'Non-Lighting Rebate Estimator'!$F46)),"")*'Non-Lighting Rebate Estimator'!$B46,"") ->  | P58: =(IF('Non-Lighting Rebate Estimator'!H46="yes",'Incremental Cost'!$I$50*'Non-Lighting Rebate Estimator'!U46,'Incremental Cost'!$H$50*'Non-Lighting Rebate Estimator'!U46)+'Non-Lighting Rebate Estimator'!X46)/(('Non-Lighting Rebate Estimator'!O46)*Lookups!$M$3) -> 
A59: 15 HP | B59: 4525 | C59: 1800 | D59: n/a | E59: 463 | F59: 0.3977900552
A60: 20 HP | B60: 5075 | C60: 2300 | D60: n/a | E60: 238 | F60: 0.4532019704
A61: 25 HP | B61: 6400 | C61: 2750 | D61: n/a | E61: 450 | F61: 0.4296875
A62: 30 HP | B62: 7525 | C62: 3200 | D62: n/a | E62: 563 | F62: 0.4252491694
A63: 40 HP | B63: 8650 | C63: 4000 | D63: n/a | E63: 325 | F63: 0.4624277457
A64: 50 HP | B64: 10700 | C64: 4900 | D64: n/a | E64: 450 | F64: 0.4579439252
A65: 60 HP | B65: 13100 | C65: 5600 | D65: n/a | E65: 950 | F65: 0.427480916
A66: 75 HP | B66: 14700 | C66: 6600 | D66: n/a | E66: 750 | F66: 0.4489795918
A67: 100 HP | B67: 16900 | C67: 7700 | D67: n/a | E67: 750 | F67: 0.4556213018
A69: Evaporative Coolers | G69: DX Units
C70: Incentive Rate | D70: 1 | G70: Tons | H70: CFM Equivalent | I70: RTU Cost 13 SEER Baseline | J70: RTU 13 SEER Full Cost ($/ton)
A71: From 2014 CA Measure Cost Study, Itron | G71: =B39 -> 3 | H71: =G71*1170 -> 3510 | I71: 3850 | J71: =I71/H71 -> 1.096866097
A72: Direct Evaporative Cooler | B72: Full Cost ($/unit) | C72: Cost/CFM | D72: Xcel Rebate/CFM | E72: Boulder Rebate: Burnout | F72: Boulder Rebate: Early replacement | G72: =B40 -> 4 | H72: =G72*1170 -> 4680 | I72: 4525 | J72: =I72/H72 -> 0.9668803419
A73: T24 minimum: 13 SEER(11.09 EER) Split System Air Conditioner (for PG&E ROB measures) assumed 2 ton | B73: 1268.550855 | G73: 5 | H73: 5850 | I73: 5275 | J73: 0.9017094017
A74: For SCE measures, evap coolers are add-on measures to existing DX systems | B74: 0 | G74: 6 | H74: 7020 | I74: 6200 | J74: 0.8831908832
A75: 2,340 CFM, 0.85 media saturation effectiveness (~2 ton equivalent) | B75: 1232.888851 | C75: =B75/2340 -> 0.5268755772 | G75: 7.5 | H75: 8775 | I75: 8125 | J75: 0.9259259259
A76: 3,510 CFM, 0.87 media saturation effectiveness (~3 ton equivalent) | B76: 1440.236367 | C76: =B76/3510 -> 0.4103237514 | G76: 8.5 | H76: 9945 | I76: 8800 | J76: 0.8848667672
A77: 5,850 CFM, 0.9 media saturation effectiveness (~5 ton equivalent) | B77: 1830.442511 | C77: =B77/5850 -> 0.3128961557 | G77: 10 | H77: 11700 | I77: 11600 | J77: 0.9914529915
A78: 11,700 CFM, 0.9 media saturation effectiveness (~10 ton equivalent) | B78: 2622.291198 | C78: =B78/11700 -> 0.2241274529 | G78: 12.5 | H78: 14625 | I78: 14900 | J78: 1.018803419
A79: 17,550 CFM, 0.9 media saturation effectiveness (~15 ton equivalent) | B79: 3414.139886 | C79: =B79/17550 -> 0.1945378852 | G79: 15 | H79: 17550 | I79: 17000 | J79: 0.9686609687
B80: Average | C80: =AVERAGE(C75:C79) -> 0.3337521645 | D80: =D81/1170 -> 0.08547008547 | E80: =ROUND((C80-D80)*D70,1) -> 0.2 | F80: =ROUND(C80*0.3,1) -> 0.1 | G80: 17.5 | H80: 20475 | I80: 17800 | J80: 0.8693528694
D81: 100 | E81: per ton | G81: 20 | H81: 23400 | I81: 23800 | J81: 1.017094017
A82: From 2014 CA Measure Cost Study, Itron | I82: Average | J82: =AVERAGE(J71:J81) -> 0.9568003347
A83: Indirect Evaporative Cooler | B83: DX Cost ($/ton) | C83: DX Cost ($/CFM) | D83: Full Cost ($/unit) | E83: Cost/CFM | F83: Xcel Rebate | G83: Boulder Rebate: Burnout | H83: Boulder Rebate: Early replacement
A84: Absensce of indirect evaporative cooling on T24-compliant HVAC system | B84: n/a | C84: n/a | D84: 0
A85: indirect evap cooling for make-up air only, 65% effectiveness assumed 3,000 cfm, no gas heat | B85: n/a | C85: n/a | D85: 11201.3781 | E85: =D85/3000 -> 3.7337927
A86: indirect evap cooling for make-up air only, 65% effectiveness assumed 45,000 cfm, no gas heat | B86: n/a | C86: n/a | D86: 127465.5261 | E86: =D86/45000 -> 2.832567247
A87: Average | B87: =D50 -> 1119.456392 | C87: =J82 -> 0.9568003347 | E87: =AVERAGE(E85:E86) -> 3.283179973 | F87: 0 | G87: 1 | H87: =ROUND(E87*0.3,1) -> 1
A89: Programmable Thermostat
A90: Programmable Thermostat | B90: 100 | C90: http://www.homedepot.com/p/Honeywell-Wi-Fi-Programmable-Touchscreen-Thermostat-Free-App-RTH8580WF/203356032
A91: Non-programmable Thermostat | B91: =AVERAGE(27,25,25,20) -> 24.25 | C91: http://www.homedepot.com/b/Heating-Venting-Cooling-Thermostats-Non-Programmable-Thermostats/N-5yc1vZc4lt
A92: Incremental Cost | B92: =B90-B91 -> 75.75
A93: Xcel Rebate | B93: 0
A94: Boulder Rebate $/unit | B94: =B90 -> 100
